Body Name,Vendor Number,Vendor Name,Cost Centre,Service Label,BV Code,Amount,Period
Slough Borough Council,806064,24 X 7 Buckinghamshire Ltd,F123,Schools,Supplies and Services,"1,592.40",Apr-22
Slough Borough Council,806064,24 X 7 Buckinghamshire Ltd,F123,Schools,Supplies and Services,"2,441.68",Apr-22
Slough Borough Council,1869,3Ms Gold Services Limited,P006,Capital,Capital Charges,"9,074.23",Apr-22
Slough Borough Council,806901,4way Consulting Ltd,P240,Capital,Capital Charges,"3,256.42",Apr-22
Slough Borough Council,1055,A J Chapman,F123,Schools,Supplies and Services,"5,060.00",Apr-22
Slough Borough Council,1055,A J Chapman,F123,Schools,Supplies and Services,"1,881.00",Apr-22
Slough Borough Council,1055,A J Chapman,F123,Schools,Supplies and Services,"74,085.24",Apr-22
Slough Borough Council,1055,A J Chapman,F123,Schools,Supplies and Services,"1,732.50",Apr-22
Slough Borough Council,806225,Abandoned Vehicle Contractor Ltd,H253,Place Regulation,Transport,520.00,Apr-22
Slough Borough Council,536,Ability Housing Association,M42E,Adult Social Care Operations,Supplies and Services,"1,272.30",Apr-22
Slough Borough Council,536,Ability Housing Association,M42E,Adult Social Care Operations,Supplies and Services,"3,039.65",Apr-22
Slough Borough Council,536,Ability Housing Association,M42E,Adult Social Care Operations,Supplies and Services,"2,698.23",Apr-22
Slough Borough Council,536,Ability Housing Association,M42E,Adult Social Care Operations,Supplies and Services,"2,675.13",Apr-22
Slough Borough Council,536,Ability Housing Association,M42E,Adult Social Care Operations,Supplies and Services,"1,855.72",Apr-22
Slough Borough Council,536,Ability Housing Association,M42E,Adult Social Care Operations,Supplies and Services,"2,851.86",Apr-22
Slough Borough Council,536,Ability Housing Association,M42E,Adult Social Care Operations,Supplies and Services,"3,490.57",Apr-22
Slough Borough Council,536,Ability Housing Association,M42E,Adult Social Care Operations,Supplies and Services,"2,630.94",Apr-22
Slough Borough Council,536,Ability Housing Association,M42E,Adult Social Care Operations,Supplies and Services,"2,731.36",Apr-22
Slough Borough Council,536,Ability Housing Association,M42E,Adult Social Care Operations,Supplies and Services,"2,691.19",Apr-22
Slough Borough Council,536,Ability Housing Association,M42E,Adult Social Care Operations,Supplies and Services,"2,517.48",Apr-22
Slough Borough Council,536,Ability Housing Association,M42E,Adult Social Care Operations,Supplies and Services,"3,076.80",Apr-22
Slough Borough Council,536,Ability Housing Association,M42E,Adult Social Care Operations,Supplies and Services,"1,446.01",Apr-22
Slough Borough Council,536,Ability Housing Association,M42E,Adult Social Care Operations,Supplies and Services,"1,894.89",Apr-22
Slough Borough Council,536,Ability Housing Association,M42E,Adult Social Care Operations,Supplies and Services,"2,437.14",Apr-22
Slough Borough Council,536,Ability Housing Association,M42E,Adult Social Care Operations,Supplies and Services,"2,758.46",Apr-22
Slough Borough Council,536,Ability Housing Association,M42E,Adult Social Care Operations,Supplies and Services,"1,429.96",Apr-22
Slough Borough Council,536,Ability Housing Association,M42E,Adult Social Care Operations,Supplies and Services,"2,530.52",Apr-22
Slough Borough Council,536,Ability Housing Association,M44E,Adult Social Care Operations,Supplies and Services,"1,815.55",Apr-22
Slough Borough Council,536,Ability Housing Association,M44E,Adult Social Care Operations,Supplies and Services,"1,883.84",Apr-22
Slough Borough Council,536,Ability Housing Association,M44E,Adult Social Care Operations,Supplies and Services,"2,221.24",Apr-22
Slough Borough Council,536,Ability Housing Association,M44E,Adult Social Care Operations,Supplies and Services,"2,301.58",Apr-22
Slough Borough Council,807554,Acorn Care & Education Ltd,F462,Children & Families,Supplies and Services,"3,306.00",Apr-22
Slough Borough Council,807554,Acorn Care & Education Ltd,F462,Children & Families,Supplies and Services,"3,306.00",Apr-22
Slough Borough Council,807554,Acorn Care & Education Ltd,F462,Children & Families,Supplies and Services,"5,066.15",Apr-22
Slough Borough Council,807554,Acorn Care & Education Ltd,F462,Children & Families,Supplies and Services,"4,827.14",Apr-22
Slough Borough Council,807554,Acorn Care & Education Ltd,F462,Children & Families,Supplies and Services,"1,908.00",Apr-22
Slough Borough Council,807554,Acorn Care & Education Ltd,F462,Children & Families,Supplies and Services,"2,610.00",Apr-22
Slough Borough Council,807554,Acorn Care & Education Ltd,F462,Children & Families,Supplies and Services,"3,180.00",Apr-22
Slough Borough Council,807554,Acorn Care & Education Ltd,F462,Children & Families,Supplies and Services,"3,180.00",Apr-22
Slough Borough Council,807554,Acorn Care & Education Ltd,F462,Children & Families,Supplies and Services,"3,180.00",Apr-22
Slough Borough Council,807554,Acorn Care & Education Ltd,F462,Children & Families,Supplies and Services,"3,180.00",Apr-22
Slough Borough Council,807554,Acorn Care & Education Ltd,F462,Children & Families,Supplies and Services,"3,180.00",Apr-22
Slough Borough Council,807554,Acorn Care & Education Ltd,F462,Children & Families,Supplies and Services,"3,180.00",Apr-22
Slough Borough Council,807554,Acorn Care & Education Ltd,F462,Children & Families,Supplies and Services,"3,180.00",Apr-22
Slough Borough Council,807554,Acorn Care & Education Ltd,F462,Children & Families,Supplies and Services,"3,180.00",Apr-22
Slough Borough Council,807554,Acorn Care & Education Ltd,F462,Children & Families,Supplies and Services,"3,180.00",Apr-22
Slough Borough Council,807554,Acorn Care & Education Ltd,F462,Children & Families,Supplies and Services,"1,044.00",Apr-22
Slough Borough Council,807554,Acorn Care & Education Ltd,F462,Children & Families,Supplies and Services,"3,180.00",Apr-22
Slough Borough Council,807554,Acorn Care & Education Ltd,F462,Children & Families,Supplies and Services,"3,180.00",Apr-22
Slough Borough Council,807554,Acorn Care & Education Ltd,F462,Children & Families,Supplies and Services,"3,180.00",Apr-22
Slough Borough Council,807554,Acorn Care & Education Ltd,F462,Children & Families,Supplies and Services,"4,240.00",Apr-22
Slough Borough Council,807554,Acorn Care & Education Ltd,F462,Children & Families,Supplies and Services,"14,235.80",Apr-22
Slough Borough Council,807554,Acorn Care & Education Ltd,F462,Children & Families,Supplies and Services,"4,028.00",Apr-22
Slough Borough Council,805529,Action First Recrutiment Ltd,A02A,People (Adults),Supplies and Services,"3,600.00",Apr-22
Slough Borough Council,2185,Activate Learning,F558,Children & Families,Supplies and Services,"28,614.00",Apr-22
Slough Borough Council,2855,Advance Housing & Support Ltd,M42F,Adult Social Care Operations,Supplies and Services,"1,097.40",Apr-22
Slough Borough Council,2855,Advance Housing & Support Ltd,M42F,Adult Social Care Operations,Supplies and Services,731.60,Apr-22
Slough Borough Council,2855,Advance Housing & Support Ltd,M42F,Adult Social Care Operations,Supplies and Services,"1,170.56",Apr-22
Slough Borough Council,2855,Advance Housing & Support Ltd,M42F,Adult Social Care Operations,Supplies and Services,"1,609.52",Apr-22
Slough Borough Council,2855,Advance Housing & Support Ltd,M42F,Adult Social Care Operations,Supplies and Services,"1,609.52",Apr-22
Slough Borough Council,2855,Advance Housing & Support Ltd,M42F,Adult Social Care Operations,Supplies and Services,"1,097.40",Apr-22
Slough Borough Council,2855,Advance Housing & Support Ltd,M42F,Adult Social Care Operations,Supplies and Services,731.60,Apr-22
Slough Borough Council,2855,Advance Housing & Support Ltd,M42F,Adult Social Care Operations,Supplies and Services,"1,170.56",Apr-22
Slough Borough Council,2855,Advance Housing & Support Ltd,M42F,Adult Social Care Operations,Supplies and Services,"1,609.52",Apr-22
Slough Borough Council,2855,Advance Housing & Support Ltd,M42F,Adult Social Care Operations,Supplies and Services,"1,097.40",Apr-22
Slough Borough Council,2855,Advance Housing & Support Ltd,M42F,Adult Social Care Operations,Supplies and Services,731.60,Apr-22
Slough Borough Council,2855,Advance Housing & Support Ltd,M42F,Adult Social Care Operations,Supplies and Services,"1,170.56",Apr-22
Slough Borough Council,807002,Advanced Card Bureau LTD,J020,Place Management,Supplies and Services,"4,786.17",Apr-22
Slough Borough Council,807002,Advanced Card Bureau LTD,J020,Place Management,Supplies and Services,"1,159.67",Apr-22
Slough Borough Council,2135,Adventure Learning Childcare Limited,F909,Children & Families,Supplies and Services,"11,268.87",Apr-22
Slough Borough Council,1603,Advision Security Ltd,A07M,Mental Health Services,Premises,"1,350.00",Apr-22
Slough Borough Council,805178,AFM Transport Limited,D880,Place Operations,Supplies and Services,"9,962.92",Apr-22
Slough Borough Council,805178,AFM Transport Limited,D880,Place Operations,Supplies and Services,"12,340.80",Apr-22
Slough Borough Council,805178,AFM Transport Limited,D880,Place Operations,Supplies and Services,"2,613.12",Apr-22
Slough Borough Council,805178,AFM Transport Limited,D880,Place Operations,Supplies and Services,"1,433.24",Apr-22
Slough Borough Council,805178,AFM Transport Limited,D880,Place Operations,Supplies and Services,848.00,Apr-22
Slough Borough Council,805178,AFM Transport Limited,D880,Place Operations,Supplies and Services,"13,010.98",Apr-22
Slough Borough Council,805178,AFM Transport Limited,D880,Place Operations,Supplies and Services,"5,058.12",Apr-22
Slough Borough Council,805178,AFM Transport Limited,D880,Place Operations,Supplies and Services,"1,368.00",Apr-22
Slough Borough Council,805178,AFM Transport Limited,D880,Place Operations,Supplies and Services,"1,628.48",Apr-22
Slough Borough Council,805178,AFM Transport Limited,D880,Place Operations,Supplies and Services,"1,464.00",Apr-22
Slough Borough Council,805178,AFM Transport Limited,D880,Place Operations,Supplies and Services,"10,416.08",Apr-22
Slough Borough Council,805178,AFM Transport Limited,D880,Place Operations,Supplies and Services,"3,061.00",Apr-22
Slough Borough Council,805178,AFM Transport Limited,D880,Place Operations,Supplies and Services,"3,352.00",Apr-22
Slough Borough Council,805178,AFM Transport Limited,D880,Place Operations,Supplies and Services,"1,292.00",Apr-22
Slough Borough Council,805178,AFM Transport Limited,D880,Place Operations,Supplies and Services,528.00,Apr-22
Slough Borough Council,2486,Agriculture And Estate Services Limited,B421,Place Strategy & Infrastructure,Supplies and Services,"10,965.00",Apr-22
Slough Borough Council,2486,Agriculture And Estate Services Limited,B421,Place Strategy & Infrastructure,Supplies and Services,"4,850.00",Apr-22
Slough Borough Council,2486,Agriculture And Estate Services Limited,B421,Place Strategy & Infrastructure,Supplies and Services,"2,380.00",Apr-22
Slough Borough Council,2301,Aik Saath,F002,Community,Supplies and Services,"11,708.50",Apr-22
Slough Borough Council,803273,Altia Solutions Ltd,B282,Digital and Strategic IT,Supplies and Services,"7,872.51",Apr-22
Slough Borough Council,2197,Altwood Housing Ltd,H205,Housing (People) Services,Supplies and Services,"1,650.00",Apr-22
Slough Borough Council,2197,Altwood Housing Ltd,H205,Housing (People) Services,Supplies and Services,900.00,Apr-22
Slough Borough Council,2197,Altwood Housing Ltd,H205,Housing (People) Services,Supplies and Services,900.00,Apr-22
Slough Borough Council,2197,Altwood Housing Ltd,H205,Housing (People) Services,Supplies and Services,"1,200.00",Apr-22
Slough Borough Council,2197,Altwood Housing Ltd,H205,Housing (People) Services,Supplies and Services,900.00,Apr-22
Slough Borough Council,2197,Altwood Housing Ltd,H205,Housing (People) Services,Supplies and Services,900.00,Apr-22
Slough Borough Council,2197,Altwood Housing Ltd,H205,Housing (People) Services,Supplies and Services,"2,250.00",Apr-22
Slough Borough Council,2197,Altwood Housing Ltd,H205,Housing (People) Services,Supplies and Services,"1,650.00",Apr-22
Slough Borough Council,2197,Altwood Housing Ltd,H205,Housing (People) Services,Supplies and Services,900.00,Apr-22
Slough Borough Council,2197,Altwood Housing Ltd,H205,Housing (People) Services,Supplies and Services,900.00,Apr-22
Slough Borough Council,2197,Altwood Housing Ltd,H205,Housing (People) Services,Supplies and Services,"1,650.00",Apr-22
Slough Borough Council,2197,Altwood Housing Ltd,H205,Housing (People) Services,Supplies and Services,720.00,Apr-22
Slough Borough Council,2197,Altwood Housing Ltd,H205,Housing (People) Services,Supplies and Services,"1,800.00",Apr-22
Slough Borough Council,2197,Altwood Housing Ltd,H205,Housing (People) Services,Supplies and Services,900.00,Apr-22
Slough Borough Council,2197,Altwood Housing Ltd,H205,Housing (People) Services,Supplies and Services,"1,650.00",Apr-22
Slough Borough Council,86,Altwood Properties Ltd,H205,Housing (People) Services,Premises,"48,436.73",Apr-22
Slough Borough Council,807515,Always Growing Together Community Interest Company Limited,F909,Children & Families,Supplies and Services,680.00,Apr-22
Slough Borough Council,807515,Always Growing Together Community Interest Company Limited,F909,Children & Families,Supplies and Services,"9,942.63",Apr-22
Slough Borough Council,808191,Ambrose Adrian Healthcare Ltd,B324,Finance,Government Grants,555.32,Apr-22
Slough Borough Council,3137,Applegarth Care Home Ltd,M25C,Adult Social Care Operations,Supplies and Services,"3,200.00",Apr-22
Slough Borough Council,3137,Applegarth Care Home Ltd,M25C,Adult Social Care Operations,Supplies and Services,"3,400.00",Apr-22
Slough Borough Council,3137,Applegarth Care Home Ltd,M27C,Adult Social Care Operations,Supplies and Services,"3,500.00",Apr-22
Slough Borough Council,808206,Applenet Care & Support,M81D,Adult Social Care Operations,Supplies and Services,"9,540.00",Apr-22
Slough Borough Council,170,Apse,B204,Finance & Commercial,Supplies and Services,"4,297.00",Apr-22
Slough Borough Council,3350,Arbour Vale School,E610,Children & Families,Supplies and Services,"434,900.00",Apr-22
Slough Borough Council,807753,Ascom UK Ltd.,B282,Digital and Strategic IT,Supplies and Services,"1,162.33",Apr-22
Slough Borough Council,3666,Assisted Living South West,M26E,Adult Social Care Operations,Supplies and Services,"4,816.04",Apr-22
Slough Borough Council,804324,Astoria Healthcare,M27F,Adult Social Care Operations,Supplies and Services,"4,071.43",Apr-22
Slough Borough Council,806232,Astral PS LTD (Trading as Foundations),A06C,Adult Social Care Commissioning,Agency Staff,"1,350.00",Apr-22
Slough Borough Council,570,Atkins Limited,P212,Capital,Capital Charges,"1,750.00",Apr-22
Slough Borough Council,570,Atkins Limited,P212,Capital,Capital Charges,"2,750.00",Apr-22
Slough Borough Council,803123,Barcham Trees PLC,P235,Capital,Capital Charges,636.00,Apr-22
Slough Borough Council,1286,Barnardos,F462,Children & Families,Supplies and Services,"32,268.00",Apr-22
Slough Borough Council,1286,Barnardos,F462,Children & Families,Supplies and Services,"32,268.00",Apr-22
Slough Borough Council,1286,Barnardos,F462,Children & Families,Supplies and Services,"16,834.00",Apr-22
Slough Borough Council,1286,Barnardos,F462,Children & Families,Supplies and Services,"2,301.00",Apr-22
Slough Borough Council,3370,Baylis Court School,E610,Children & Families,Supplies and Services,"4,166.67",Apr-22
Slough Borough Council,1444,Baylis Media Ltd,F210,Community,Supplies and Services,999.43,Apr-22
Slough Borough Council,1681,Bcq,B240,Governance,Supplies and Services,"1,007.00",Apr-22
Slough Borough Council,1681,Bcq,B240,Governance,Supplies and Services,"2,920.00",Apr-22
Slough Borough Council,1681,Bcq,B240,Governance,Supplies and Services,"8,065.00",Apr-22
Slough Borough Council,1681,Bcq,B240,Governance,Supplies and Services,768.00,Apr-22
Slough Borough Council,1681,Bcq,B240,Governance,Supplies and Services,630.00,Apr-22
Slough Borough Council,3208,Be Happy Pre School,F909,Children & Families,Supplies and Services,560.00,Apr-22
Slough Borough Council,3208,Be Happy Pre School,F909,Children & Families,Supplies and Services,"8,019.49",Apr-22
Slough Borough Council,3208,Be Happy Pre School,F909,Children & Families,Supplies and Services,"4,118.26",Apr-22
Slough Borough Council,805539,Beech Haven Ltd,M27C,Adult Social Care Operations,Supplies and Services,"3,171.43",Apr-22
Slough Borough Council,609,Beechwood Secondary School,E610,Children & Families,Supplies and Services,"8,583.32",Apr-22
Slough Borough Council,804588,BEN Motor & Allied Trades Bev.Fnd,M15D,Adult Social Care Operations,Supplies and Services,"6,400.00",Apr-22
Slough Borough Council,804588,BEN Motor & Allied Trades Bev.Fnd,M27C,Adult Social Care Operations,Supplies and Services,"5,600.00",Apr-22
Slough Borough Council,612,Berkshire Healthcare Nhs Foundation Trust,F520,Education & Inclusion,Supplies and Services,"3,333.33",Apr-22
Slough Borough Council,612,Berkshire Healthcare Nhs Foundation Trust,A07M,Mental Health Services,Agency Staff,"3,894.50",Apr-22
Slough Borough Council,612,Berkshire Healthcare Nhs Foundation Trust,A07M,Mental Health Services,Agency Staff,"4,303.33",Apr-22
Slough Borough Council,612,Berkshire Healthcare Nhs Foundation Trust,A07M,Mental Health Services,Agency Staff,"3,066.08",Apr-22
Slough Borough Council,612,Berkshire Healthcare Nhs Foundation Trust,A07M,Mental Health Services,Agency Staff,"5,379.25",Apr-22
Slough Borough Council,612,Berkshire Healthcare Nhs Foundation Trust,F520,Education & Inclusion,Supplies and Services,"4,750.00",Apr-22
Slough Borough Council,612,Berkshire Healthcare Nhs Foundation Trust,F520,Education & Inclusion,Supplies and Services,"21,000.00",Apr-22
Slough Borough Council,612,Berkshire Healthcare Nhs Foundation Trust,A07M,Mental Health Services,Supplies and Services,"5,928.40",Apr-22
Slough Borough Council,612,Berkshire Healthcare Nhs Foundation Trust,F417,Education & Inclusion,Supplies and Services,"4,116.67",Apr-22
Slough Borough Council,612,Berkshire Healthcare Nhs Foundation Trust,F417,Education & Inclusion,Supplies and Services,"4,116.67",Apr-22
Slough Borough Council,612,Berkshire Healthcare Nhs Foundation Trust,A01P,Public Health,Supplies and Services,"3,168.00",Apr-22
Slough Borough Council,3611,Birch Assist Ltd T/A Bluebird Care (South Bucks & Slough),M44C,Adult Social Care Operations,Supplies and Services,"4,105.50",Apr-22
Slough Borough Council,3611,Birch Assist Ltd T/A Bluebird Care (South Bucks & Slough),M44D,Adult Social Care Operations,Supplies and Services,"2,026.50",Apr-22
Slough Borough Council,3611,Birch Assist Ltd T/A Bluebird Care (South Bucks & Slough),M44D,Adult Social Care Operations,Supplies and Services,"2,758.25",Apr-22
Slough Borough Council,3611,Birch Assist Ltd T/A Bluebird Care (South Bucks & Slough),M44D,Adult Social Care Operations,Supplies and Services,714.00,Apr-22
Slough Borough Council,3611,Birch Assist Ltd T/A Bluebird Care (South Bucks & Slough),M44D,Adult Social Care Operations,Supplies and Services,714.00,Apr-22
Slough Borough Council,803828,Blue Willow Day Nursery Ltd,F909,Children & Families,Supplies and Services,"21,852.39",Apr-22
Slough Borough Council,805160,Bouygues E&S FM UK Limited,B310,Finance,Supplies and Services,"7,371.48",Apr-22
Slough Borough Council,805060,BPS Dorking Ltd t/a BPS Chartered Surveyors,D224,Planning and Transport,Supplies and Services,"4,840.00",Apr-22
Slough Borough Council,2856,Brain Injury Rehabilitation Trust,M26E,Adult Social Care Operations,Supplies and Services,"5,413.15",Apr-22
Slough Borough Council,2856,Brain Injury Rehabilitation Trust,M27C,Adult Social Care Operations,Supplies and Services,"7,240.33",Apr-22
Slough Borough Council,805179,Braywood Tree Surgery Ltd,D880,Place Operations,Supplies and Services,"7,500.00",Apr-22
Slough Borough Council,805179,Braywood Tree Surgery Ltd,P220,Capital,Capital Charges,"2,618.88",Apr-22
Slough Borough Council,805179,Braywood Tree Surgery Ltd,P220,Capital,Capital Charges,"9,395.96",Apr-22
Slough Borough Council,805179,Braywood Tree Surgery Ltd,P220,Capital,Capital Charges,"9,395.96",Apr-22
Slough Borough Council,805179,Braywood Tree Surgery Ltd,P220,Capital,Capital Charges,"9,494.46",Apr-22
Slough Borough Council,1745,Bre Global,D224,Planning and Transport,Supplies and Services,"1,720.00",Apr-22
Slough Borough Council,805817,Bright World Nurseries,F909,Children & Families,Supplies and Services,"10,380.54",Apr-22
Slough Borough Council,504,Britwell Baptist Pre School,F909,Children & Families,Supplies and Services,"6,127.32",Apr-22
Slough Borough Council,619,Buchanan  Computing Ltd,B282,Digital and Strategic IT,Supplies and Services,"2,802.00",Apr-22
Slough Borough Council,806892,Bucks & Berks SLT Consultancy,F417,Education & Inclusion,Supplies and Services,"1,028.57",Apr-22
Slough Borough Council,806892,Bucks & Berks SLT Consultancy,F417,Education & Inclusion,Supplies and Services,"1,028.57",Apr-22
Slough Borough Council,805404,Building Futures Together,F210,Community,TP-Other Bodies,"3,840.00",Apr-22
Slough Borough Council,805404,Building Futures Together,F210,Community,Supplies and Services,"3,500.00",Apr-22
Slough Borough Council,741,Bunnies Pre-School,F909,Children & Families,Supplies and Services,"7,000.89",Apr-22
Slough Borough Council,804448,Bupa Care Homes (ANS) Ltd,M15D,Adult Social Care Operations,Supplies and Services,"5,821.18",Apr-22
Slough Borough Council,806950,Burrbaxter Print Ltd,B033,People,Supplies and Services,954.00,Apr-22
Slough Borough Council,807597,Bytesize Training ltd,B282,Digital and Strategic IT,Supplies and Services,"1,750.00",Apr-22
Slough Borough Council,807597,Bytesize Training ltd,B282,Digital and Strategic IT,Supplies and Services,"1,400.00",Apr-22
Slough Borough Council,807597,Bytesize Training ltd,B282,Digital and Strategic IT,Supplies and Services,"1,400.00",Apr-22
Slough Borough Council,2177,C F Roberts (Electrical Contractors)Plc,P180,Capital,Capital Charges,"23,994.00",Apr-22
Slough Borough Council,629,C.H.O.I.C.E Limited,M26E,Adult Social Care Operations,Supplies and Services,"9,080.87",Apr-22
Slough Borough Council,629,C.H.O.I.C.E Limited,M26E,Adult Social Care Operations,Supplies and Services,"10,409.84",Apr-22
Slough Borough Council,629,C.H.O.I.C.E Limited,M26E,Adult Social Care Operations,Supplies and Services,"11,083.72",Apr-22
Slough Borough Council,629,C.H.O.I.C.E Limited,M26E,Adult Social Care Operations,Supplies and Services,"6,214.34",Apr-22
Slough Borough Council,629,C.H.O.I.C.E Limited,M26E,Adult Social Care Operations,Supplies and Services,"8,456.61",Apr-22
Slough Borough Council,629,C.H.O.I.C.E Limited,M26E,Adult Social Care Operations,Supplies and Services,"10,409.83",Apr-22
Slough Borough Council,629,C.H.O.I.C.E Limited,M26E,Adult Social Care Operations,Supplies and Services,"10,642.90",Apr-22
Slough Borough Council,629,C.H.O.I.C.E Limited,M26E,Adult Social Care Operations,Supplies and Services,"10,090.90",Apr-22
Slough Borough Council,629,C.H.O.I.C.E Limited,M42E,Adult Social Care Operations,Supplies and Services,"6,235.03",Apr-22
Slough Borough Council,629,C.H.O.I.C.E Limited,M42E,Adult Social Care Operations,Supplies and Services,"5,677.03",Apr-22
Slough Borough Council,629,C.H.O.I.C.E Limited,M42E,Adult Social Care Operations,Supplies and Services,"6,108.82",Apr-22
Slough Borough Council,629,C.H.O.I.C.E Limited,M42E,Adult Social Care Operations,Supplies and Services,"6,145.35",Apr-22
Slough Borough Council,629,C.H.O.I.C.E Limited,M44D,Adult Social Care Operations,Supplies and Services,"4,431.49",Apr-22
Slough Borough Council,629,C.H.O.I.C.E Limited,M44F,Adult Social Care Operations,Supplies and Services,"2,581.90",Apr-22
Slough Borough Council,629,C.H.O.I.C.E Limited,M44F,Adult Social Care Operations,Supplies and Services,"2,608.07",Apr-22
Slough Borough Council,808007,Cameron & Cooper Limited (The Beech House School),F462,Children & Families,Supplies and Services,"1,578.90",Apr-22
Slough Borough Council,623,Canon (Uk) Ltd,K059,Business Services,Supplies and Services,"2,183.07",Apr-22
Slough Borough Council,623,Canon (Uk) Ltd,K059,Business Services,Supplies and Services,647.79,Apr-22
Slough Borough Council,623,Canon (Uk) Ltd,K059,Business Services,Supplies and Services,812.22,Apr-22
Slough Borough Council,737,Capita Business Services Ltd,B282,Digital and Strategic IT,Supplies and Services,"95,957.05",Apr-22
Slough Borough Council,737,Capita Business Services Ltd,F158,Education & Inclusion,Supplies and Services,"311,196.12",Apr-22
Slough Borough Council,737,Capita Business Services Ltd,H020,Finance & Commercial,Supplies and Services,"3,900.00",Apr-22
Slough Borough Council,804861,Care Management Group Ltd,M42F,Adult Social Care Operations,Supplies and Services,"1,926.74",Apr-22
Slough Borough Council,805621,Care Staff Services,B324,Finance,Supplies and Services,"2,005.33",Apr-22
Slough Borough Council,805621,Care Staff Services,B298,Finance,Supplies and Services,"8,855.74",Apr-22
Slough Borough Council,805621,Care Staff Services,A07R,Adult Social Care Operations,Supplies and Services,"1,080.63",Apr-22
Slough Borough Council,805621,Care Staff Services,A07R,Adult Social Care Operations,Supplies and Services,"1,102.20",Apr-22
Slough Borough Council,805621,Care Staff Services,A07R,Adult Social Care Operations,Supplies and Services,905.63,Apr-22
Slough Borough Council,805621,Care Staff Services,A07R,Adult Social Care Operations,Supplies and Services,713.13,Apr-22
Slough Borough Council,805621,Care Staff Services,A07R,Adult Social Care Operations,Supplies and Services,796.25,Apr-22
Slough Borough Council,805621,Care Staff Services,A07R,Adult Social Care Operations,Supplies and Services,787.50,Apr-22
Slough Borough Council,805621,Care Staff Services,A07R,Adult Social Care Operations,Supplies and Services,560.00,Apr-22
Slough Borough Council,805621,Care Staff Services,A07R,Adult Social Care Operations,Supplies and Services,"1,165.50",Apr-22
Slough Borough Council,805621,Care Staff Services,A07R,Adult Social Care Operations,Supplies and Services,"1,715.00",Apr-22
Slough Borough Council,805621,Care Staff Services,A07R,Adult Social Care Operations,Supplies and Services,"2,703.75",Apr-22
Slough Borough Council,805621,Care Staff Services,A07R,Adult Social Care Operations,Supplies and Services,700.00,Apr-22
Slough Borough Council,805621,Care Staff Services,A07R,Adult Social Care Operations,Supplies and Services,743.75,Apr-22
Slough Borough Council,805621,Care Staff Services,A07R,Adult Social Care Operations,Supplies and Services,739.38,Apr-22
Slough Borough Council,805621,Care Staff Services,A07R,Adult Social Care Operations,Supplies and Services,573.50,Apr-22
Slough Borough Council,805621,Care Staff Services,A07R,Adult Social Care Operations,Supplies and Services,"1,102.50",Apr-22
Slough Borough Council,805621,Care Staff Services,A07R,Adult Social Care Operations,Supplies and Services,800.63,Apr-22
Slough Borough Council,805621,Care Staff Services,A07R,Adult Social Care Operations,Supplies and Services,"1,147.00",Apr-22
Slough Borough Council,805621,Care Staff Services,M44C,Adult Social Care Operations,Supplies and Services,823.25,Apr-22
Slough Borough Council,805621,Care Staff Services,M44C,Adult Social Care Operations,Supplies and Services,"2,664.00",Apr-22
Slough Borough Council,805621,Care Staff Services,M44C,Adult Social Care Operations,Supplies and Services,906.50,Apr-22
Slough Borough Council,805621,Care Staff Services,M44C,Adult Social Care Operations,Supplies and Services,528.88,Apr-22
Slough Borough Council,805621,Care Staff Services,M44C,Adult Social Care Operations,Supplies and Services,"2,072.00",Apr-22
Slough Borough Council,805621,Care Staff Services,M44C,Adult Social Care Operations,Supplies and Services,"1,211.75",Apr-22
Slough Borough Council,805621,Care Staff Services,M44C,Adult Social Care Operations,Supplies and Services,"2,205.00",Apr-22
Slough Borough Council,805621,Care Staff Services,M44C,Adult Social Care Operations,Supplies and Services,647.50,Apr-22
Slough Borough Council,805621,Care Staff Services,M44C,Adult Social Care Operations,Supplies and Services,781.63,Apr-22
Slough Borough Council,805621,Care Staff Services,M44C,Adult Social Care Operations,Supplies and Services,"2,072.00",Apr-22
Slough Borough Council,805621,Care Staff Services,M44C,Adult Social Care Operations,Supplies and Services,573.50,Apr-22
Slough Borough Council,805621,Care Staff Services,M44C,Adult Social Care Operations,Supplies and Services,"1,142.38",Apr-22
Slough Borough Council,805621,Care Staff Services,M44C,Adult Social Care Operations,Supplies and Services,"1,137.75",Apr-22
Slough Borough Council,805621,Care Staff Services,M44C,Adult Social Care Operations,Supplies and Services,906.50,Apr-22
Slough Borough Council,805621,Care Staff Services,M44C,Adult Social Care Operations,Supplies and Services,"1,470.00",Apr-22
Slough Borough Council,805621,Care Staff Services,M44C,Adult Social Care Operations,Supplies and Services,"2,331.00",Apr-22
Slough Borough Council,805621,Care Staff Services,M44C,Adult Social Care Operations,Supplies and Services,906.50,Apr-22
Slough Borough Council,805621,Care Staff Services,M44C,Adult Social Care Operations,Supplies and Services,805.00,Apr-22
Slough Borough Council,805621,Care Staff Services,M44C,Adult Social Care Operations,Supplies and Services,656.25,Apr-22
Slough Borough Council,805621,Care Staff Services,M44C,Adult Social Care Operations,Supplies and Services,"2,161.25",Apr-22
Slough Borough Council,805621,Care Staff Services,M44C,Adult Social Care Operations,Supplies and Services,"2,205.00",Apr-22
Slough Borough Council,805621,Care Staff Services,M44C,Adult Social Care Operations,Supplies and Services,"2,331.00",Apr-22
Slough Borough Council,805621,Care Staff Services,M44C,Adult Social Care Operations,Supplies and Services,682.50,Apr-22
Slough Borough Council,805621,Care Staff Services,M44C,Adult Social Care Operations,Supplies and Services,857.50,Apr-22
Slough Borough Council,805621,Care Staff Services,M44C,Adult Social Care Operations,Supplies and Services,857.50,Apr-22
Slough Borough Council,805621,Care Staff Services,M44C,Adult Social Care Operations,Supplies and Services,"1,160.88",Apr-22
Slough Borough Council,805621,Care Staff Services,M44C,Adult Social Care Operations,Supplies and Services,"2,146.00",Apr-22
Slough Borough Council,805621,Care Staff Services,M44C,Adult Social Care Operations,Supplies and Services,518.00,Apr-22
Slough Borough Council,805621,Care Staff Services,M44C,Adult Social Care Operations,Supplies and Services,"1,561.88",Apr-22
Slough Borough Council,805621,Care Staff Services,M44C,Adult Social Care Operations,Supplies and Services,666.00,Apr-22
Slough Borough Council,805621,Care Staff Services,M44C,Adult Social Care Operations,Supplies and Services,"1,813.00",Apr-22
Slough Borough Council,805621,Care Staff Services,M44C,Adult Social Care Operations,Supplies and Services,925.00,Apr-22
Slough Borough Council,805621,Care Staff Services,M44C,Adult Social Care Operations,Supplies and Services,647.50,Apr-22
Slough Borough Council,805621,Care Staff Services,M44C,Adult Social Care Operations,Supplies and Services,"1,102.50",Apr-22
Slough Borough Council,805621,Care Staff Services,M44C,Adult Social Care Operations,Supplies and Services,857.50,Apr-22
Slough Borough Council,805621,Care Staff Services,M44C,Adult Social Care Operations,Supplies and Services,"1,091.50",Apr-22
Slough Borough Council,805621,Care Staff Services,M44C,Adult Social Care Operations,Supplies and Services,721.50,Apr-22
Slough Borough Council,805621,Care Staff Services,M44C,Adult Social Care Operations,Supplies and Services,"1,406.00",Apr-22
Slough Borough Council,805621,Care Staff Services,M44C,Adult Social Care Operations,Supplies and Services,560.00,Apr-22
Slough Borough Council,805621,Care Staff Services,M44C,Adult Social Care Operations,Supplies and Services,"1,554.00",Apr-22
Slough Borough Council,805621,Care Staff Services,M44C,Adult Social Care Operations,Supplies and Services,"1,554.00",Apr-22
Slough Borough Council,805621,Care Staff Services,M44C,Adult Social Care Operations,Supplies and Services,615.13,Apr-22
Slough Borough Council,805621,Care Staff Services,M44C,Adult Social Care Operations,Supplies and Services,"1,480.00",Apr-22
Slough Borough Council,805621,Care Staff Services,M44C,Adult Social Care Operations,Supplies and Services,"1,554.00",Apr-22
Slough Borough Council,805621,Care Staff Services,M44C,Adult Social Care Operations,Supplies and Services,647.50,Apr-22
Slough Borough Council,805621,Care Staff Services,M44C,Adult Social Care Operations,Supplies and Services,"1,164.80",Apr-22
Slough Borough Council,805621,Care Staff Services,M44D,Adult Social Care Operations,Supplies and Services,629.00,Apr-22
Slough Borough Council,805621,Care Staff Services,M44D,Adult Social Care Operations,Supplies and Services,"1,592.50",Apr-22
Slough Borough Council,805621,Care Staff Services,M44D,Adult Social Care Operations,Supplies and Services,832.50,Apr-22
Slough Borough Council,805621,Care Staff Services,M44D,Adult Social Care Operations,Supplies and Services,"1,239.50",Apr-22
Slough Borough Council,805621,Care Staff Services,M44D,Adult Social Care Operations,Supplies and Services,"1,102.50",Apr-22
Slough Borough Council,805621,Care Staff Services,M44D,Adult Social Care Operations,Supplies and Services,"2,331.00",Apr-22
Slough Borough Council,805621,Care Staff Services,M44D,Adult Social Care Operations,Supplies and Services,612.50,Apr-22
Slough Borough Council,805621,Care Staff Services,M44D,Adult Social Care Operations,Supplies and Services,"1,137.50",Apr-22
Slough Borough Council,805621,Care Staff Services,M44D,Adult Social Care Operations,Supplies and Services,"1,165.50",Apr-22
Slough Borough Council,805621,Care Staff Services,M44D,Adult Social Care Operations,Supplies and Services,"1,785.00",Apr-22
Slough Borough Council,805621,Care Staff Services,M44F,Adult Social Care Operations,Supplies and Services,703.00,Apr-22
Slough Borough Council,805621,Care Staff Services,M44F,Adult Social Care Operations,Supplies and Services,721.50,Apr-22
Slough Borough Council,805621,Care Staff Services,M44F,Adult Social Care Operations,Supplies and Services,999.00,Apr-22
Slough Borough Council,805621,Care Staff Services,M44F,Adult Social Care Operations,Supplies and Services,945.00,Apr-22
Slough Borough Council,805621,Care Staff Services,M44F,Adult Social Care Operations,Supplies and Services,"1,461.50",Apr-22
Slough Borough Council,805621,Care Staff Services,M44F,Adult Social Care Operations,Supplies and Services,"2,590.00",Apr-22
Slough Borough Council,805621,Care Staff Services,M44F,Adult Social Care Operations,Supplies and Services,666.00,Apr-22
Slough Borough Council,805621,Care Staff Services,M44F,Adult Social Care Operations,Supplies and Services,"1,239.50",Apr-22
Slough Borough Council,805621,Care Staff Services,M45C,Adult Social Care Operations,Supplies and Services,573.13,Apr-22
Slough Borough Council,805621,Care Staff Services,M45C,Adult Social Care Operations,Supplies and Services,665.00,Apr-22
Slough Borough Council,805621,Care Staff Services,M45C,Adult Social Care Operations,Supplies and Services,831.25,Apr-22
Slough Borough Council,805621,Care Staff Services,M45C,Adult Social Care Operations,Supplies and Services,832.50,Apr-22
Slough Borough Council,805621,Care Staff Services,M48C,Adult Social Care Operations,Supplies and Services,"3,700.00",Apr-22
Slough Borough Council,805621,Care Staff Services,M48C,Adult Social Care Operations,Supplies and Services,"2,331.00",Apr-22
Slough Borough Council,805621,Care Staff Services,M48C,Adult Social Care Operations,Supplies and Services,"2,450.00",Apr-22
Slough Borough Council,805621,Care Staff Services,M85F,Adult Social Care Operations,Supplies and Services,592.00,Apr-22
Slough Borough Council,805621,Care Staff Services,B324,Finance,Government Grants,"2,776.62",Apr-22
Slough Borough Council,808149,Care Staff Services Support,M44F,Adult Social Care Operations,Supplies and Services,"4,192.39",Apr-22
Slough Borough Council,1162,Care Uk Community Partnership Ltd,B324,Finance,Supplies and Services,"6,316.80",Apr-22
Slough Borough Council,1162,Care Uk Community Partnership Ltd,M15D,Adult Social Care Operations,Supplies and Services,"2,736.00",Apr-22
Slough Borough Council,1162,Care Uk Community Partnership Ltd,M17C,Adult Social Care Operations,Supplies and Services,"3,157.14",Apr-22
Slough Borough Council,1162,Care Uk Community Partnership Ltd,M17C,Adult Social Care Operations,Supplies and Services,"2,414.29",Apr-22
Slough Borough Council,1162,Care Uk Community Partnership Ltd,B324,Finance,Government Grants,"8,746.35",Apr-22
Slough Borough Council,1910,Carousel Buses Ltd,D512,Major Infrastructure Projects,Supplies and Services,"3,040.11",Apr-22
Slough Borough Council,804413,Castle Water,D900,Place Operations,Premises,587.88,Apr-22
Slough Borough Council,418,Castleview School,E620,Children & Families,Supplies and Services,"50,316.67",Apr-22
Slough Borough Council,808307,CDW Limited,B282,Digital and Strategic IT,Supplies and Services,"11,580.58",Apr-22
Slough Borough Council,803560,Centennial Property Limited T/A Rent Connect,H205,Housing (People) Services,Premises,"32,632.00",Apr-22
Slough Borough Council,803560,Centennial Property Limited T/A Rent Connect,H205,Housing (People) Services,Premises,"35,071.00",Apr-22
Slough Borough Council,803560,Centennial Property Limited T/A Rent Connect,H205,Housing (People) Services,Premises,"40,362.00",Apr-22
Slough Borough Council,805619,Centennial Property Limited T/A The Housing Network,H205,Housing (People) Services,Premises,"28,850.00",Apr-22
Slough Borough Council,805619,Centennial Property Limited T/A The Housing Network,H205,Housing (People) Services,Premises,"26,700.00",Apr-22
Slough Borough Council,805619,Centennial Property Limited T/A The Housing Network,H205,Housing (People) Services,Premises,"34,100.00",Apr-22
Slough Borough Council,3609,Centurion Healthcare Ltd,M26E,Adult Social Care Operations,Supplies and Services,"5,837.10",Apr-22
Slough Borough Council,805174,Certas Energy,D910,Place Operations,Supplies and Services,"20,557.50",Apr-22
Slough Borough Council,806920,Cetus Solutions Limited,P084,Capital,Capital Charges,"3,240.00",Apr-22
Slough Borough Council,2892,Chalfont Lodge,M15D,Adult Social Care Operations,Supplies and Services,"5,785.71",Apr-22
Slough Borough Council,2892,Chalfont Lodge,M15D,Adult Social Care Operations,Supplies and Services,"3,214.29",Apr-22
Slough Borough Council,2892,Chalfont Lodge,M15F,Adult Social Care Operations,Supplies and Services,"8,571.43",Apr-22
Slough Borough Council,2892,Chalfont Lodge,M26E,Adult Social Care Operations,Supplies and Services,"5,785.71",Apr-22
Slough Borough Council,2608,Chandos Lodge Nursing Home,M18C,Adult Social Care Operations,Supplies and Services,"3,600.00",Apr-22
Slough Borough Council,3114,Cherry Trees Day Nursery,F909,Children & Families,Supplies and Services,"1,120.00",Apr-22
Slough Borough Council,3114,Cherry Trees Day Nursery,F909,Children & Families,Supplies and Services,"26,273.52",Apr-22
Slough Borough Council,2871,Cherry Trees Residential Care,M42F,Adult Social Care Operations,Supplies and Services,"1,607.14",Apr-22
Slough Borough Council,2871,Cherry Trees Residential Care,M42F,Adult Social Care Operations,Supplies and Services,"3,214.29",Apr-22
Slough Borough Council,2871,Cherry Trees Residential Care,M42F,Adult Social Care Operations,Supplies and Services,"3,214.29",Apr-22
Slough Borough Council,807225,Chiltern Way Academy,F551,Children & Families,Supplies and Services,"9,280.00",Apr-22
Slough Borough Council,2561,Christies Care Ltd,M44D,Adult Social Care Operations,Supplies and Services,"4,404.00",Apr-22
Slough Borough Council,2561,Christies Care Ltd,M44D,Adult Social Care Operations,Supplies and Services,"4,404.00",Apr-22
Slough Borough Council,803405,Churchmead School,F552,Children & Families,Supplies and Services,"15,006.00",Apr-22
Slough Borough Council,803405,Churchmead School,F552,Children & Families,Supplies and Services,"13,103.00",Apr-22
Slough Borough Council,808240,Cicero,B204,Finance & Commercial,Supplies and Services,"19,127.50",Apr-22
Slough Borough Council,1573,Cipfa Business Limited,B015,Finance,Supplies and Services,"1,332.00",Apr-22
Slough Borough Council,1573,Cipfa Business Limited,B015,Finance,Supplies and Services,"13,348.00",Apr-22
Slough Borough Council,807491,Cippenham School,E620,Children & Families,Supplies and Services,"17,249.98",Apr-22
Slough Borough Council,806550,City Homecare Ltd,A07R,Adult Social Care Operations,Supplies and Services,"2,116.80",Apr-22
Slough Borough Council,806550,City Homecare Ltd,A07R,Adult Social Care Operations,Supplies and Services,"1,008.00",Apr-22
Slough Borough Council,806550,City Homecare Ltd,A07R,Adult Social Care Operations,Supplies and Services,"1,125.60",Apr-22
Slough Borough Council,806550,City Homecare Ltd,M44C,Adult Social Care Operations,Supplies and Services,693.00,Apr-22
Slough Borough Council,806550,City Homecare Ltd,M44C,Adult Social Care Operations,Supplies and Services,823.20,Apr-22
Slough Borough Council,806550,City Homecare Ltd,M44C,Adult Social Care Operations,Supplies and Services,856.80,Apr-22
Slough Borough Council,806550,City Homecare Ltd,M44C,Adult Social Care Operations,Supplies and Services,772.80,Apr-22
Slough Borough Council,806550,City Homecare Ltd,M44C,Adult Social Care Operations,Supplies and Services,756.00,Apr-22
Slough Borough Council,806550,City Homecare Ltd,M44C,Adult Social Care Operations,Supplies and Services,"1,058.40",Apr-22
Slough Borough Council,806550,City Homecare Ltd,M44C,Adult Social Care Operations,Supplies and Services,688.80,Apr-22
Slough Borough Council,806550,City Homecare Ltd,M44C,Adult Social Care Operations,Supplies and Services,823.20,Apr-22
Slough Borough Council,806550,City Homecare Ltd,M44C,Adult Social Care Operations,Supplies and Services,"1,646.40",Apr-22
Slough Borough Council,806550,City Homecare Ltd,M44C,Adult Social Care Operations,Supplies and Services,588.00,Apr-22
Slough Borough Council,806550,City Homecare Ltd,M44C,Adult Social Care Operations,Supplies and Services,"1,058.40",Apr-22
Slough Borough Council,806550,City Homecare Ltd,M44C,Adult Social Care Operations,Supplies and Services,"1,176.00",Apr-22
Slough Borough Council,806550,City Homecare Ltd,M44C,Adult Social Care Operations,Supplies and Services,"2,116.80",Apr-22
Slough Borough Council,806550,City Homecare Ltd,M44C,Adult Social Care Operations,Supplies and Services,940.80,Apr-22
Slough Borough Council,806550,City Homecare Ltd,M44C,Adult Social Care Operations,Supplies and Services,"3,528.00",Apr-22
Slough Borough Council,806550,City Homecare Ltd,M44C,Adult Social Care Operations,Supplies and Services,823.20,Apr-22
Slough Borough Council,806550,City Homecare Ltd,M44C,Adult Social Care Operations,Supplies and Services,655.20,Apr-22
Slough Borough Council,806550,City Homecare Ltd,M44C,Adult Social Care Operations,Supplies and Services,957.60,Apr-22
Slough Borough Council,806550,City Homecare Ltd,M44C,Adult Social Care Operations,Supplies and Services,"1,033.20",Apr-22
Slough Borough Council,806550,City Homecare Ltd,M44C,Adult Social Care Operations,Supplies and Services,957.60,Apr-22
Slough Borough Council,806550,City Homecare Ltd,M44C,Adult Social Care Operations,Supplies and Services,831.60,Apr-22
Slough Borough Council,806550,City Homecare Ltd,M44C,Adult Social Care Operations,Supplies and Services,"2,251.20",Apr-22
Slough Borough Council,806550,City Homecare Ltd,M44C,Adult Social Care Operations,Supplies and Services,"1,881.60",Apr-22
Slough Borough Council,806550,City Homecare Ltd,M44C,Adult Social Care Operations,Supplies and Services,"2,116.80",Apr-22
Slough Borough Council,806550,City Homecare Ltd,M44C,Adult Social Care Operations,Supplies and Services,"2,116.80",Apr-22
Slough Borough Council,806550,City Homecare Ltd,M44C,Adult Social Care Operations,Supplies and Services,"1,176.00",Apr-22
Slough Borough Council,806550,City Homecare Ltd,M44C,Adult Social Care Operations,Supplies and Services,"1,058.40",Apr-22
Slough Borough Council,806550,City Homecare Ltd,M44C,Adult Social Care Operations,Supplies and Services,"1,881.60",Apr-22
Slough Borough Council,806550,City Homecare Ltd,M44C,Adult Social Care Operations,Supplies and Services,"1,814.40",Apr-22
Slough Borough Council,806550,City Homecare Ltd,M44C,Adult Social Care Operations,Supplies and Services,"1,176.00",Apr-22
Slough Borough Council,806550,City Homecare Ltd,M44C,Adult Social Care Operations,Supplies and Services,"1,176.00",Apr-22
Slough Borough Council,806550,City Homecare Ltd,M44D,Adult Social Care Operations,Supplies and Services,"1,176.00",Apr-22
Slough Borough Council,806550,City Homecare Ltd,M44D,Adult Social Care Operations,Supplies and Services,588.00,Apr-22
Slough Borough Council,806550,City Homecare Ltd,M44D,Adult Social Care Operations,Supplies and Services,823.20,Apr-22
Slough Borough Council,806550,City Homecare Ltd,M44D,Adult Social Care Operations,Supplies and Services,705.60,Apr-22
Slough Borough Council,806550,City Homecare Ltd,M44D,Adult Social Care Operations,Supplies and Services,"1,814.40",Apr-22
Slough Borough Council,806550,City Homecare Ltd,M44D,Adult Social Care Operations,Supplies and Services,"1,041.60",Apr-22
Slough Borough Council,806550,City Homecare Ltd,M44D,Adult Social Care Operations,Supplies and Services,"1,176.00",Apr-22
Slough Borough Council,806550,City Homecare Ltd,M44E,Adult Social Care Operations,Supplies and Services,705.60,Apr-22
Slough Borough Council,806550,City Homecare Ltd,M44F,Adult Social Care Operations,Supplies and Services,"1,478.40",Apr-22
Slough Borough Council,806550,City Homecare Ltd,M44F,Adult Social Care Operations,Supplies and Services,806.40,Apr-22
Slough Borough Council,806550,City Homecare Ltd,M44F,Adult Social Care Operations,Supplies and Services,840.00,Apr-22
Slough Borough Council,806550,City Homecare Ltd,M45C,Adult Social Care Operations,Supplies and Services,609.00,Apr-22
Slough Borough Council,806550,City Homecare Ltd,M48C,Adult Social Care Operations,Supplies and Services,588.00,Apr-22
Slough Borough Council,806550,City Homecare Ltd,M48C,Adult Social Care Operations,Supplies and Services,982.80,Apr-22
Slough Borough Council,1083,Civica Uk Limited,B282,Digital and Strategic IT,Supplies and Services,"41,532.40",Apr-22
Slough Borough Council,1083,Civica Uk Limited,B282,Digital and Strategic IT,Supplies and Services,"14,800.08",Apr-22
Slough Borough Council,1083,Civica Uk Limited,B282,Digital and Strategic IT,Supplies and Services,"156,363.28",Apr-22
Slough Borough Council,1083,Civica Uk Limited,B342,Business Services,Supplies and Services,"102,392.00",Apr-22
Slough Borough Council,1083,Civica Uk Limited,B246,Governance,Supplies and Services,"16,310.00",Apr-22
Slough Borough Council,1083,Civica Uk Limited,B246,Governance,Supplies and Services,"16,310.00",Apr-22
Slough Borough Council,1083,Civica Uk Limited,B246,Governance,Supplies and Services,"15,974.62",Apr-22
Slough Borough Council,1083,Civica Uk Limited,B210,Democratic Services,Supplies and Services,"-2,516.69",Apr-22
Slough Borough Council,1083,Civica Uk Limited,B342,Business Services,Supplies and Services,"7,535.00",Apr-22
Slough Borough Council,1083,Civica Uk Limited,B342,Business Services,Supplies and Services,"53,350.00",Apr-22
Slough Borough Council,1151,Claycots Primary School,E200,Children & Families,Supplies and Services,"739,794.02",Apr-22
Slough Borough Council,3685,Coghlan Lodges Limited,M44D,Adult Social Care Operations,Supplies and Services,"2,116.04",Apr-22
Slough Borough Council,3685,Coghlan Lodges Limited,M44F,Adult Social Care Operations,Supplies and Services,"1,870.00",Apr-22
Slough Borough Council,805823,Collaborative Care Solutions,B324,Finance,Supplies and Services,"1,704.53",Apr-22
Slough Borough Council,805823,Collaborative Care Solutions,B298,Finance,Supplies and Services,"1,173.68",Apr-22
Slough Borough Council,805823,Collaborative Care Solutions,B298,Finance,Supplies and Services,"1,976.60",Apr-22
Slough Borough Council,805823,Collaborative Care Solutions,M42E,Adult Social Care Operations,Supplies and Services,"8,571.42",Apr-22
Slough Borough Council,805823,Collaborative Care Solutions,M42E,Adult Social Care Operations,Supplies and Services,"9,171.43",Apr-22
Slough Borough Council,805823,Collaborative Care Solutions,M42F,Adult Social Care Operations,Supplies and Services,"2,875.71",Apr-22
Slough Borough Council,805823,Collaborative Care Solutions,M42F,Adult Social Care Operations,Supplies and Services,"2,571.42",Apr-22
Slough Borough Council,805823,Collaborative Care Solutions,M44F,Adult Social Care Operations,Supplies and Services,"3,257.14",Apr-22
Slough Borough Council,805823,Collaborative Care Solutions,M44F,Adult Social Care Operations,Supplies and Services,"4,178.75",Apr-22
Slough Borough Council,805823,Collaborative Care Solutions,M44F,Adult Social Care Operations,Supplies and Services,"3,053.57",Apr-22
Slough Borough Council,805823,Collaborative Care Solutions,B324,Finance,Government Grants,"2,360.13",Apr-22
Slough Borough Council,459,Colliers Cre,J006,Place Management,Supplies and Services,"3,666.67",Apr-22
Slough Borough Council,459,Colliers Cre,J006,Place Management,Supplies and Services,"3,666.67",Apr-22
Slough Borough Council,286,Colnbrook C Of E Primary School,E620,Children & Families,Supplies and Services,"27,273.32",Apr-22
Slough Borough Council,2535,Comfort Care Services,M42E,Adult Social Care Operations,Supplies and Services,"2,482.07",Apr-22
Slough Borough Council,2535,Comfort Care Services,M42E,Adult Social Care Operations,Supplies and Services,"1,128.21",Apr-22
Slough Borough Council,2535,Comfort Care Services,M42F,Adult Social Care Operations,Supplies and Services,"1,474.20",Apr-22
Slough Borough Council,2535,Comfort Care Services,M42F,Adult Social Care Operations,Supplies and Services,"1,692.86",Apr-22
Slough Borough Council,2535,Comfort Care Services,M44F,Adult Social Care Operations,Supplies and Services,"1,128.21",Apr-22
Slough Borough Council,2535,Comfort Care Services,M44F,Adult Social Care Operations,Supplies and Services,"1,827.34",Apr-22
Slough Borough Council,2535,Comfort Care Services,B324,Finance,Government Grants,"61,089.42",Apr-22
Slough Borough Council,3840,Community Housing And Therapy,M80F,Adult Social Care Operations,Supplies and Services,"2,615.51",Apr-22
Slough Borough Council,807580,Company Jinks LTD,C322,Communities and Leisure,Supplies and Services,500.00,Apr-22
Slough Borough Council,807005,Complete Background Screening Ltd,B348,People,Supplies and Services,818.00,Apr-22
Slough Borough Council,807005,Complete Background Screening Ltd,B348,People,Supplies and Services,510.00,Apr-22
Slough Borough Council,1437,Computerised & Digital Security Systems Ltd,K089,Place Regulation,Supplies and Services,"1,875.00",Apr-22
Slough Borough Council,1437,Computerised & Digital Security Systems Ltd,K089,Place Regulation,Supplies and Services,"1,875.00",Apr-22
Slough Borough Council,1437,Computerised & Digital Security Systems Ltd,K089,Place Regulation,Supplies and Services,"1,875.00",Apr-22
Slough Borough Council,1437,Computerised & Digital Security Systems Ltd,K089,Place Regulation,Supplies and Services,"1,875.00",Apr-22
Slough Borough Council,1437,Computerised & Digital Security Systems Ltd,K089,Place Regulation,Supplies and Services,"1,875.00",Apr-22
Slough Borough Council,1772,Computershare Voucher Services,B348,People,Supplies and Services,911.82,Apr-22
Slough Borough Council,807468,"Connect Managed Services (UK) Ltd, trading as Conn3ct",A106,Customer,Supplies and Services,"3,420.40",Apr-22
Slough Borough Council,806594,Coram Family and Childcare,M04A,People Children Management,Transport,"161,368.98",Apr-22
Slough Borough Council,805278,Countrystyle Recycling Ltd,D342,Place Operations,Supplies and Services,"1,905.15",Apr-22
Slough Borough Council,805278,Countrystyle Recycling Ltd,D342,Place Operations,Supplies and Services,"1,840.00",Apr-22
Slough Borough Council,3670,Craegmoor Birches Grove Priory,M27F,Adult Social Care Operations,Supplies and Services,"3,805.68",Apr-22
Slough Borough Council,1638,Creative Support Ltd,B324,Finance,Supplies and Services,"1,052.80",Apr-22
Slough Borough Council,1638,Creative Support Ltd,A02F,Adult Social Care Operations,Supplies and Services,"32,355.66",Apr-22
Slough Borough Council,1638,Creative Support Ltd,A02L,Adult Social Care Operations,Supplies and Services,"1,431.90",Apr-22
Slough Borough Council,1638,Creative Support Ltd,A02L,Adult Social Care Operations,Supplies and Services,"1,565.10",Apr-22
Slough Borough Council,1638,Creative Support Ltd,A02L,Adult Social Care Operations,Supplies and Services,"1,165.50",Apr-22
Slough Borough Council,1638,Creative Support Ltd,A02L,Adult Social Care Operations,Supplies and Services,"1,065.60",Apr-22
Slough Borough Council,1638,Creative Support Ltd,A02L,Adult Social Care Operations,Supplies and Services,599.40,Apr-22
Slough Borough Council,1638,Creative Support Ltd,A02L,Adult Social Care Operations,Supplies and Services,"1,115.55",Apr-22
Slough Borough Council,1638,Creative Support Ltd,M42E,Adult Social Care Operations,Supplies and Services,"1,182.15",Apr-22
Slough Borough Council,1638,Creative Support Ltd,M44E,Adult Social Care Operations,Supplies and Services,649.35,Apr-22
Slough Borough Council,1638,Creative Support Ltd,M44E,Adult Social Care Operations,Supplies and Services,"1,215.45",Apr-22
Slough Borough Council,1638,Creative Support Ltd,M44E,Adult Social Care Operations,Supplies and Services,932.40,Apr-22
Slough Borough Council,1638,Creative Support Ltd,M44E,Adult Social Care Operations,Supplies and Services,957.38,Apr-22
Slough Borough Council,1638,Creative Support Ltd,M44E,Adult Social Care Operations,Supplies and Services,699.30,Apr-22
Slough Borough Council,1638,Creative Support Ltd,M44E,Adult Social Care Operations,Supplies and Services,957.38,Apr-22
Slough Borough Council,1638,Creative Support Ltd,B324,Finance,Government Grants,"1,457.72",Apr-22
Slough Borough Council,806983,Critiqom,B377,Finance & Commercial,Supplies and Services,789.88,Apr-22
Slough Borough Council,806983,Critiqom,H015,Finance & Commercial,Supplies and Services,"1,705.75",Apr-22
Slough Borough Council,806063,Cruise Minibuses Ltd,F123,Schools,Supplies and Services,"16,312.75",Apr-22
Slough Borough Council,806900,CYXTERA TECHNOLOGY UK LIMITED,B282,Digital and Strategic IT,Supplies and Services,892.76,Apr-22
Slough Borough Council,1840,Davitt Jones Bould Limited,B079,Place Strategy,Supplies and Services,"2,146.50",Apr-22
Slough Borough Council,1840,Davitt Jones Bould Limited,B079,Place Strategy,Supplies and Services,683.70,Apr-22
Slough Borough Council,804689,De Lage Landen Leasing Ltd,K059,Business Services,Supplies and Services,"2,085.00",Apr-22
Slough Borough Council,804573,Deborah Bishop,C322,Communities and Leisure,Supplies and Services,561.00,Apr-22
Slough Borough Council,804573,Deborah Bishop,C322,Communities and Leisure,Supplies and Services,726.00,Apr-22
Slough Borough Council,804903,Dennis Eagle Limited,D630,Place Operations,Supplies and Services,560.77,Apr-22
Slough Borough Council,928,Devonshires Solicitors,F868,Children & Families,Supplies and Services,"5,000.00",Apr-22
Slough Borough Council,803306,Ditton Park Academy,E620,Children & Families,Supplies and Services,"18,841.69",Apr-22
Slough Borough Council,808239,Dow Schofield Watts Business Planning,B015,Finance,Salaries and Wages,"6,987.50",Apr-22
Slough Borough Council,1457,Dr Norman Gordon,D320,Regulatory Services,Premises,"2,263.75",Apr-22
Slough Borough Council,803177,Early Steps Preschool,F909,Children & Families,Supplies and Services,"6,270.20",Apr-22
Slough Borough Council,803301,Eden Girls School,E610,Children & Families,Supplies and Services,"3,416.67",Apr-22
Slough Borough Council,1299,Edf Energy,K526,Building Management,Premises,"84,619.63",Apr-22
Slough Borough Council,1299,Edf Energy,K526,Building Management,Premises,676.89,Apr-22
Slough Borough Council,1299,Edf Energy,D413,Place Strategy & Infrastructure,Supplies and Services,"41,569.03",Apr-22
Slough Borough Council,1299,Edf Energy,D413,Place Strategy & Infrastructure,Supplies and Services,"51,499.18",Apr-22
Slough Borough Council,807001,Elegant Care Services Ltd,M44C,Adult Social Care Operations,Supplies and Services,"4,008.57",Apr-22
Slough Borough Council,806355,Elysium Healthcare,M26E,Adult Social Care Operations,Supplies and Services,"11,044.68",Apr-22
Slough Borough Council,806355,Elysium Healthcare,M26E,Adult Social Care Operations,Supplies and Services,"9,576.52",Apr-22
Slough Borough Council,3752,Endurance Health,A07R,Adult Social Care Operations,Supplies and Services,"2,217.01",Apr-22
Slough Borough Council,3752,Endurance Health,A07R,Adult Social Care Operations,Supplies and Services,"2,753.99",Apr-22
Slough Borough Council,3752,Endurance Health,A07R,Adult Social Care Operations,Supplies and Services,"2,040.90",Apr-22
Slough Borough Council,3752,Endurance Health,A07R,Adult Social Care Operations,Supplies and Services,"1,124.55",Apr-22
Slough Borough Council,3752,Endurance Health,A07R,Adult Social Care Operations,Supplies and Services,"1,943.90",Apr-22
Slough Borough Council,3752,Endurance Health,A07R,Adult Social Care Operations,Supplies and Services,891.33,Apr-22
Slough Borough Council,3752,Endurance Health,M44C,Adult Social Care Operations,Supplies and Services,"1,807.65",Apr-22
Slough Borough Council,3752,Endurance Health,M44C,Adult Social Care Operations,Supplies and Services,"1,389.35",Apr-22
Slough Borough Council,3752,Endurance Health,M44C,Adult Social Care Operations,Supplies and Services,"1,132.89",Apr-22
Slough Borough Council,3752,Endurance Health,M44C,Adult Social Care Operations,Supplies and Services,571.20,Apr-22
Slough Borough Council,3752,Endurance Health,M44C,Adult Social Care Operations,Supplies and Services,"1,335.46",Apr-22
Slough Borough Council,3752,Endurance Health,M44C,Adult Social Care Operations,Supplies and Services,"1,433.96",Apr-22
Slough Borough Council,3752,Endurance Health,M44C,Adult Social Care Operations,Supplies and Services,"1,999.20",Apr-22
Slough Borough Council,3752,Endurance Health,M44C,Adult Social Care Operations,Supplies and Services,749.70,Apr-22
Slough Borough Council,3752,Endurance Health,M44C,Adult Social Care Operations,Supplies and Services,927.62,Apr-22
Slough Borough Council,3752,Endurance Health,M44C,Adult Social Care Operations,Supplies and Services,632.50,Apr-22
Slough Borough Council,3752,Endurance Health,M44C,Adult Social Care Operations,Supplies and Services,976.20,Apr-22
Slough Borough Council,3752,Endurance Health,M44C,Adult Social Care Operations,Supplies and Services,999.60,Apr-22
Slough Borough Council,3752,Endurance Health,M44C,Adult Social Care Operations,Supplies and Services,"1,071.00",Apr-22
Slough Borough Council,3752,Endurance Health,M44C,Adult Social Care Operations,Supplies and Services,"1,899.27",Apr-22
Slough Borough Council,3752,Endurance Health,M44C,Adult Social Care Operations,Supplies and Services,765.78,Apr-22
Slough Borough Council,3752,Endurance Health,M44C,Adult Social Care Operations,Supplies and Services,"1,297.72",Apr-22
Slough Borough Council,3752,Endurance Health,M44D,Adult Social Care Operations,Supplies and Services,"2,392.23",Apr-22
Slough Borough Council,3752,Endurance Health,M44D,Adult Social Care Operations,Supplies and Services,779.17,Apr-22
Slough Borough Council,3752,Endurance Health,M44D,Adult Social Care Operations,Supplies and Services,985.94,Apr-22
Slough Borough Council,3752,Endurance Health,M44D,Adult Social Care Operations,Supplies and Services,619.98,Apr-22
Slough Borough Council,3752,Endurance Health,M44D,Adult Social Care Operations,Supplies and Services,"1,306.34",Apr-22
Slough Borough Council,3752,Endurance Health,M44F,Adult Social Care Operations,Supplies and Services,556.33,Apr-22
Slough Borough Council,3752,Endurance Health,M48C,Adult Social Care Operations,Supplies and Services,"1,379.21",Apr-22
Slough Borough Council,3752,Endurance Health,M48C,Adult Social Care Operations,Supplies and Services,"2,986.31",Apr-22
Slough Borough Council,3752,Endurance Health,M48C,Adult Social Care Operations,Supplies and Services,829.71,Apr-22
Slough Borough Council,3752,Endurance Health,M48C,Adult Social Care Operations,Supplies and Services,"2,179.22",Apr-22
Slough Borough Council,3752,Endurance Health,B324,Finance,Government Grants,"3,586.46",Apr-22
Slough Borough Council,805423,Enriched Care,M44F,Adult Social Care Operations,Supplies and Services,"2,679.00",Apr-22
Slough Borough Council,807310,Enterprise Rent-A-Car UK Limited trading as Enterprise Flex-E-Rent,D910,Place Operations,Transport,"27,639.10",Apr-22
Slough Borough Council,807310,Enterprise Rent-A-Car UK Limited trading as Enterprise Flex-E-Rent,D910,Place Operations,Transport,"27,639.10",Apr-22
Slough Borough Council,807039,Epaton Ltd,P084,Capital,Supplies and Services,700.00,Apr-22
Slough Borough Council,2677,Eton House Residential Home,M25C,Adult Social Care Operations,Supplies and Services,"3,420.00",Apr-22
Slough Borough Council,2677,Eton House Residential Home,M25C,Adult Social Care Operations,Supplies and Services,"3,420.00",Apr-22
Slough Borough Council,2677,Eton House Residential Home,M25D,Adult Social Care Operations,Supplies and Services,"3,096.43",Apr-22
Slough Borough Council,2677,Eton House Residential Home,M25D,Adult Social Care Operations,Supplies and Services,"1,961.07",Apr-22
Slough Borough Council,2677,Eton House Residential Home,M25D,Adult Social Care Operations,Supplies and Services,"3,199.64",Apr-22
Slough Borough Council,2677,Eton House Residential Home,M27C,Adult Social Care Operations,Supplies and Services,"2,571.43",Apr-22
Slough Borough Council,808344,Euro Housing UK LTD,H205,Housing (People) Services,Supplies and Services,605.00,Apr-22
Slough Borough Council,808344,Euro Housing UK LTD,H205,Housing (People) Services,Supplies and Services,"1,485.00",Apr-22
Slough Borough Council,808344,Euro Housing UK LTD,H205,Housing (People) Services,Supplies and Services,"1,375.00",Apr-22
Slough Borough Council,807198,everyLIFE. Technologies Ltd,A07R,Adult Social Care Operations,Supplies and Services,"1,445.85",Apr-22
Slough Borough Council,806501,Excellent Healthcare Services Ltd,A07R,Adult Social Care Operations,Supplies and Services,"2,067.93",Apr-22
Slough Borough Council,806501,Excellent Healthcare Services Ltd,A07R,Adult Social Care Operations,Supplies and Services,582.94,Apr-22
Slough Borough Council,806501,Excellent Healthcare Services Ltd,A07R,Adult Social Care Operations,Supplies and Services,525.00,Apr-22
Slough Borough Council,806501,Excellent Healthcare Services Ltd,A07R,Adult Social Care Operations,Supplies and Services,"2,144.52",Apr-22
Slough Borough Council,806501,Excellent Healthcare Services Ltd,M44C,Adult Social Care Operations,Supplies and Services,655.27,Apr-22
Slough Borough Council,806501,Excellent Healthcare Services Ltd,M44C,Adult Social Care Operations,Supplies and Services,"1,080.77",Apr-22
Slough Borough Council,806501,Excellent Healthcare Services Ltd,M44C,Adult Social Care Operations,Supplies and Services,"2,144.52",Apr-22
Slough Borough Council,806501,Excellent Healthcare Services Ltd,M44C,Adult Social Care Operations,Supplies and Services,510.60,Apr-22
Slough Borough Council,806501,Excellent Healthcare Services Ltd,M44C,Adult Social Care Operations,Supplies and Services,595.70,Apr-22
Slough Borough Council,806501,Excellent Healthcare Services Ltd,M44F,Adult Social Care Operations,Supplies and Services,"2,831.92",Apr-22
Slough Borough Council,806501,Excellent Healthcare Services Ltd,M44F,Adult Social Care Operations,Supplies and Services,"2,831.92",Apr-22
Slough Borough Council,806501,Excellent Healthcare Services Ltd,M44F,Adult Social Care Operations,Supplies and Services,714.84,Apr-22
Slough Borough Council,806501,Excellent Healthcare Services Ltd,M44F,Adult Social Care Operations,Supplies and Services,953.12,Apr-22
Slough Borough Council,805225,Falcon Surfacing Ltd,D880,Place Operations,Supplies and Services,"4,575.00",Apr-22
Slough Borough Council,805225,Falcon Surfacing Ltd,D880,Place Operations,Supplies and Services,"12,450.15",Apr-22
Slough Borough Council,805225,Falcon Surfacing Ltd,D880,Place Operations,Supplies and Services,"7,084.00",Apr-22
Slough Borough Council,805225,Falcon Surfacing Ltd,D880,Place Operations,Supplies and Services,"5,432.70",Apr-22
Slough Borough Council,805225,Falcon Surfacing Ltd,D880,Place Operations,Supplies and Services,"2,716.35",Apr-22
Slough Borough Council,805225,Falcon Surfacing Ltd,D880,Place Operations,Supplies and Services,"3,542.00",Apr-22
Slough Borough Council,805225,Falcon Surfacing Ltd,D880,Place Operations,Supplies and Services,"1,517.65",Apr-22
Slough Borough Council,805225,Falcon Surfacing Ltd,D880,Place Operations,Supplies and Services,"5,355.00",Apr-22
Slough Borough Council,805225,Falcon Surfacing Ltd,D880,Place Operations,Supplies and Services,"13,953.58",Apr-22
Slough Borough Council,805225,Falcon Surfacing Ltd,D880,Place Operations,Supplies and Services,"4,746.80",Apr-22
Slough Borough Council,805225,Falcon Surfacing Ltd,D880,Place Operations,Supplies and Services,"4,890.00",Apr-22
Slough Borough Council,805225,Falcon Surfacing Ltd,D880,Place Operations,Supplies and Services,"5,694.20",Apr-22
Slough Borough Council,805225,Falcon Surfacing Ltd,D880,Place Operations,Supplies and Services,"1,550.46",Apr-22
Slough Borough Council,805225,Falcon Surfacing Ltd,D880,Place Operations,Supplies and Services,"37,706.45",Apr-22
Slough Borough Council,805225,Falcon Surfacing Ltd,D880,Place Operations,Supplies and Services,"2,788.56",Apr-22
Slough Borough Council,805225,Falcon Surfacing Ltd,D880,Place Operations,Supplies and Services,"2,288.95",Apr-22
Slough Borough Council,805225,Falcon Surfacing Ltd,D880,Place Operations,Supplies and Services,"1,135.76",Apr-22
Slough Borough Council,641,Falon Nameplates Limited,D320,Regulatory Services,Supplies and Services,751.36,Apr-22
Slough Borough Council,4031,Family Support Practise Limited,A03D,Adult Social Care Operations,Supplies and Services,"2,025.00",Apr-22
Slough Borough Council,4031,Family Support Practise Limited,B277,Digital and Strategic IT,Supplies and Services,"1,665.00",Apr-22
Slough Borough Council,4031,Family Support Practise Limited,B277,Digital and Strategic IT,Supplies and Services,"1,800.00",Apr-22
Slough Borough Council,4031,Family Support Practise Limited,B277,Digital and Strategic IT,Supplies and Services,"1,459.50",Apr-22
Slough Borough Council,4031,Family Support Practise Limited,B277,Digital and Strategic IT,Supplies and Services,"1,000.00",Apr-22
Slough Borough Council,4031,Family Support Practise Limited,B277,Digital and Strategic IT,Supplies and Services,"1,459.50",Apr-22
Slough Borough Council,3187,Federation Of Burial And  Cremation Authorities,D320,Regulatory Services,Supplies and Services,983.80,Apr-22
Slough Borough Council,955,First Beeline Buses Ltd,D512,Major Infrastructure Projects,Supplies and Services,"5,009.10",Apr-22
Slough Borough Council,955,First Beeline Buses Ltd,D512,Major Infrastructure Projects,Supplies and Services,"5,580.33",Apr-22
Slough Borough Council,754,First Steps Day Nursery,F909,Children & Families,Supplies and Services,"10,168.53",Apr-22
Slough Borough Council,1626,Five Star Radio Cars Limited,F123,Schools,Supplies and Services,"2,880.00",Apr-22
Slough Borough Council,1626,Five Star Radio Cars Limited,F123,Schools,Supplies and Services,"1,638.75",Apr-22
Slough Borough Council,1626,Five Star Radio Cars Limited,F123,Schools,Supplies and Services,"2,294.25",Apr-22
Slough Borough Council,1626,Five Star Radio Cars Limited,F123,Schools,Supplies and Services,"2,890.00",Apr-22
Slough Borough Council,1626,Five Star Radio Cars Limited,F123,Schools,Supplies and Services,"2,185.00",Apr-22
Slough Borough Council,2519,Fleet Tutors,F449,Education & Inclusion,Supplies and Services,"3,544.00",Apr-22
Slough Borough Council,2519,Fleet Tutors,F449,Education & Inclusion,Supplies and Services,"2,730.00",Apr-22
Slough Borough Council,2519,Fleet Tutors,F449,Education & Inclusion,Supplies and Services,"3,544.00",Apr-22
Slough Borough Council,2519,Fleet Tutors,F449,Education & Inclusion,Supplies and Services,"3,264.00",Apr-22
Slough Borough Council,2519,Fleet Tutors,F449,Education & Inclusion,Supplies and Services,"3,640.00",Apr-22
Slough Borough Council,2204,Fleetdrive Management Ltd,M50A,Major Infrastructure Projects,Transport,-651.71,Apr-22
Slough Borough Council,1204,Forget Me Not,M25C,Adult Social Care Operations,Supplies and Services,"3,800.00",Apr-22
Slough Borough Council,1204,Forget Me Not,M25C,Adult Social Care Operations,Supplies and Services,"3,800.00",Apr-22
Slough Borough Council,1204,Forget Me Not,M25C,Adult Social Care Operations,Supplies and Services,"3,180.00",Apr-22
Slough Borough Council,1204,Forget Me Not,M25C,Adult Social Care Operations,Supplies and Services,"3,180.00",Apr-22
Slough Borough Council,1204,Forget Me Not,M27C,Adult Social Care Operations,Supplies and Services,"3,047.40",Apr-22
Slough Borough Council,1204,Forget Me Not,M27C,Adult Social Care Operations,Supplies and Services,"3,047.40",Apr-22
Slough Borough Council,1204,Forget Me Not,M27C,Adult Social Care Operations,Supplies and Services,"3,400.00",Apr-22
Slough Borough Council,1204,Forget Me Not,M27C,Adult Social Care Operations,Supplies and Services,"3,400.00",Apr-22
Slough Borough Council,647,Foxborough Primary School,E620,Children & Families,Supplies and Services,"8,701.66",Apr-22
Slough Borough Council,649,Freeway Lift Services Ltd,P006,Capital,Supplies and Services,"13,089.00",Apr-22
Slough Borough Council,807105,Fusion,B282,Digital and Strategic IT,Supplies and Services,"86,976.62",Apr-22
Slough Borough Council,807125,Futures For Shared Lives,M36E,Adult Social Care Operations,Supplies and Services,"3,325.50",Apr-22
Slough Borough Council,807125,Futures For Shared Lives,M36E,Adult Social Care Operations,Supplies and Services,"3,436.35",Apr-22
Slough Borough Council,804911,GAP Group Limited,D880,Place Operations,Supplies and Services,966.00,Apr-22
Slough Borough Council,804911,GAP Group Limited,D880,Place Operations,Supplies and Services,"1,092.96",Apr-22
Slough Borough Council,804911,GAP Group Limited,D880,Place Operations,Supplies and Services,"1,012.00",Apr-22
Slough Borough Council,1758,Gas Advisory Services Limited,J607,Place Management,Supplies and Services,"3,696.50",Apr-22
Slough Borough Council,1758,Gas Advisory Services Limited,J607,Place Management,Supplies and Services,"2,074.00",Apr-22
Slough Borough Council,1758,Gas Advisory Services Limited,J607,Place Management,Supplies and Services,720.00,Apr-22
Slough Borough Council,807052,Georgia Thompson,C322,Communities and Leisure,Supplies and Services,562.00,Apr-22
Slough Borough Council,807626,Global Radio Services Ltd,B324,Finance,Supplies and Services,"2,495.00",Apr-22
Slough Borough Council,2830,GR Response Healthcare Ltd,B298,Finance,Supplies and Services,"1,683.97",Apr-22
Slough Borough Council,2830,GR Response Healthcare Ltd,A07R,Adult Social Care Operations,Supplies and Services,855.00,Apr-22
Slough Borough Council,2830,GR Response Healthcare Ltd,A07R,Adult Social Care Operations,Supplies and Services,"1,598.32",Apr-22
Slough Borough Council,2830,GR Response Healthcare Ltd,A07R,Adult Social Care Operations,Supplies and Services,684.00,Apr-22
Slough Borough Council,2830,GR Response Healthcare Ltd,A07R,Adult Social Care Operations,Supplies and Services,893.00,Apr-22
Slough Borough Council,2830,GR Response Healthcare Ltd,A07R,Adult Social Care Operations,Supplies and Services,931.00,Apr-22
Slough Borough Council,2830,GR Response Healthcare Ltd,A07R,Adult Social Care Operations,Supplies and Services,"2,137.50",Apr-22
Slough Borough Council,2830,GR Response Healthcare Ltd,M44C,Adult Social Care Operations,Supplies and Services,"2,261.00",Apr-22
Slough Borough Council,2830,GR Response Healthcare Ltd,M44C,Adult Social Care Operations,Supplies and Services,"1,566.08",Apr-22
Slough Borough Council,2830,GR Response Healthcare Ltd,M44C,Adult Social Care Operations,Supplies and Services,798.00,Apr-22
Slough Borough Council,2830,GR Response Healthcare Ltd,M44C,Adult Social Care Operations,Supplies and Services,798.00,Apr-22
Slough Borough Council,2830,GR Response Healthcare Ltd,M44C,Adult Social Care Operations,Supplies and Services,798.00,Apr-22
Slough Borough Council,2830,GR Response Healthcare Ltd,M44C,Adult Social Care Operations,Supplies and Services,798.00,Apr-22
Slough Borough Council,2830,GR Response Healthcare Ltd,M44C,Adult Social Care Operations,Supplies and Services,"1,463.00",Apr-22
Slough Borough Council,2830,GR Response Healthcare Ltd,M44C,Adult Social Care Operations,Supplies and Services,"2,394.00",Apr-22
Slough Borough Council,2830,GR Response Healthcare Ltd,M44C,Adult Social Care Operations,Supplies and Services,"2,394.00",Apr-22
Slough Borough Council,2830,GR Response Healthcare Ltd,M44C,Adult Social Care Operations,Supplies and Services,"1,529.50",Apr-22
Slough Borough Council,2830,GR Response Healthcare Ltd,M44C,Adult Social Care Operations,Supplies and Services,"2,356.00",Apr-22
Slough Borough Council,2830,GR Response Healthcare Ltd,M44C,Adult Social Care Operations,Supplies and Services,"2,250.08",Apr-22
Slough Borough Council,2830,GR Response Healthcare Ltd,M44C,Adult Social Care Operations,Supplies and Services,"2,499.92",Apr-22
Slough Borough Council,2830,GR Response Healthcare Ltd,M44C,Adult Social Care Operations,Supplies and Services,"2,062.76",Apr-22
Slough Borough Council,2830,GR Response Healthcare Ltd,M44C,Adult Social Care Operations,Supplies and Services,798.00,Apr-22
Slough Borough Council,2830,GR Response Healthcare Ltd,M44C,Adult Social Care Operations,Supplies and Services,"2,546.00",Apr-22
Slough Borough Council,2830,GR Response Healthcare Ltd,M44D,Adult Social Care Operations,Supplies and Services,919.68,Apr-22
Slough Borough Council,2830,GR Response Healthcare Ltd,M44D,Adult Social Care Operations,Supplies and Services,"1,596.00",Apr-22
Slough Borough Council,2830,GR Response Healthcare Ltd,M44D,Adult Social Care Operations,Supplies and Services,"2,755.00",Apr-22
Slough Borough Council,2830,GR Response Healthcare Ltd,M44D,Adult Social Care Operations,Supplies and Services,"1,491.12",Apr-22
Slough Borough Council,2830,GR Response Healthcare Ltd,M44D,Adult Social Care Operations,Supplies and Services,"1,705.36",Apr-22
Slough Borough Council,2830,GR Response Healthcare Ltd,M44D,Adult Social Care Operations,Supplies and Services,"2,394.00",Apr-22
Slough Borough Council,2830,GR Response Healthcare Ltd,M44D,Adult Social Care Operations,Supplies and Services,"2,250.08",Apr-22
Slough Borough Council,2830,GR Response Healthcare Ltd,M44F,Adult Social Care Operations,Supplies and Services,"2,128.00",Apr-22
Slough Borough Council,2830,GR Response Healthcare Ltd,M44F,Adult Social Care Operations,Supplies and Services,570.92,Apr-22
Slough Borough Council,2830,GR Response Healthcare Ltd,M45C,Adult Social Care Operations,Supplies and Services,627.20,Apr-22
Slough Borough Council,2830,GR Response Healthcare Ltd,M45C,Adult Social Care Operations,Supplies and Services,"1,064.00",Apr-22
Slough Borough Council,2830,GR Response Healthcare Ltd,M45C,Adult Social Care Operations,Supplies and Services,"1,064.00",Apr-22
Slough Borough Council,2830,GR Response Healthcare Ltd,M45C,Adult Social Care Operations,Supplies and Services,"1,064.00",Apr-22
Slough Borough Council,2830,GR Response Healthcare Ltd,M45C,Adult Social Care Operations,Supplies and Services,"1,064.00",Apr-22
Slough Borough Council,2830,GR Response Healthcare Ltd,M47D,Adult Social Care Operations,Supplies and Services,753.59,Apr-22
Slough Borough Council,2830,GR Response Healthcare Ltd,M48C,Adult Social Care Operations,Supplies and Services,"3,002.00",Apr-22
Slough Borough Council,2830,GR Response Healthcare Ltd,A06C,Adult Social Care Commissioning,Supplies and Services,"9,500.00",Apr-22
Slough Borough Council,805191,Graphiti Art Ltd,D880,Place Operations,Supplies and Services,"1,656.00",Apr-22
Slough Borough Council,804577,Green Monarch ZC2016 c/o Savills(UK) Limited,H205,Housing (People) Services,Premises,"3,583.33",Apr-22
Slough Borough Council,805069,Grove Academy,E610,Children & Families,Supplies and Services,"8,916.65",Apr-22
Slough Borough Council,804447,Grundon Waste Management Limited,D342,Place Operations,Supplies and Services,"497,483.76",Apr-22
Slough Borough Council,3228,H Plus Care Ltd,M17C,Adult Social Care Operations,Supplies and Services,"4,180.57",Apr-22
Slough Borough Council,3228,H Plus Care Ltd,M17C,Adult Social Care Operations,Supplies and Services,"4,045.71",Apr-22
Slough Borough Council,3228,H Plus Care Ltd,M18C,Adult Social Care Operations,Supplies and Services,"4,180.57",Apr-22
Slough Borough Council,3228,H Plus Care Ltd,M18C,Adult Social Care Operations,Supplies and Services,"4,045.71",Apr-22
Slough Borough Council,3228,H Plus Care Ltd,M25C,Adult Social Care Operations,Supplies and Services,"5,535.71",Apr-22
Slough Borough Council,3228,H Plus Care Ltd,M25C,Adult Social Care Operations,Supplies and Services,"5,357.14",Apr-22
Slough Borough Council,3228,H Plus Care Ltd,M26E,Adult Social Care Operations,Supplies and Services,"5,314.29",Apr-22
Slough Borough Council,3228,H Plus Care Ltd,M26E,Adult Social Care Operations,Supplies and Services,"5,142.86",Apr-22
Slough Borough Council,744,Hampshire County Council,D015,Major Infrastructure Projects,Supplies and Services,"28,624.63",Apr-22
Slough Borough Council,808034,Hankinson Duckett Associates,P180,Capital,Capital Charges,"1,815.30",Apr-22
Slough Borough Council,804986,Havencare Ltd,M26E,Adult Social Care Operations,Supplies and Services,"1,279.50",Apr-22
Slough Borough Council,804986,Havencare Ltd,M26E,Adult Social Care Operations,Supplies and Services,"1,279.50",Apr-22
Slough Borough Council,804986,Havencare Ltd,M26E,Adult Social Care Operations,Supplies and Services,"1,279.50",Apr-22
Slough Borough Council,804986,Havencare Ltd,M26E,Adult Social Care Operations,Supplies and Services,"1,279.50",Apr-22
Slough Borough Council,1381,Haybrook College,E610,Children & Families,Supplies and Services,"158,769.58",Apr-22
Slough Borough Council,3784,Haybrook College Pru,E610,Children & Families,Supplies and Services,"54,200.00",Apr-22
Slough Borough Council,803248,Haybrook College Trust,F166,Education & Inclusion,Supplies and Services,"18,000.00",Apr-22
Slough Borough Council,803248,Haybrook College Trust,B297,Finance & Commercial,Government Grants,"2,940.00",Apr-22
Slough Borough Council,803753,Healthcare Homes,M15D,Adult Social Care Operations,Supplies and Services,"2,734.29",Apr-22
Slough Borough Council,803753,Healthcare Homes,M18C,Adult Social Care Operations,Supplies and Services,"4,714.29",Apr-22
Slough Borough Council,803753,Healthcare Homes,M27C,Adult Social Care Operations,Supplies and Services,"3,000.00",Apr-22
Slough Borough Council,1956,Heathlands School,F551,Children & Families,Supplies and Services,"3,712.68",Apr-22
Slough Borough Council,1956,Heathlands School,F551,Children & Families,Supplies and Services,"2,784.51",Apr-22
Slough Borough Council,807682,Help and Care,A02C,Adult Social Care Commissioning,Supplies and Services,"16,109.74",Apr-22
Slough Borough Council,807682,Help and Care,A02C,Adult Social Care Commissioning,Supplies and Services,"16,109.74",Apr-22
Slough Borough Council,1686,Herald Chase,B660,Place Operations,Supplies and Services,"2,809.77",Apr-22
Slough Borough Council,803447,Herewards House Residential Home,M27C,Adult Social Care Operations,Supplies and Services,"2,785.71",Apr-22
Slough Borough Council,3387,Herschel Grammar School,B297,Finance & Commercial,Government Grants,"2,920.00",Apr-22
Slough Borough Council,3387,Herschel Grammar School,B297,Finance & Commercial,Government Grants,"1,095.00",Apr-22
Slough Borough Council,807998,Heywood�s Catering,F382,Children & Families,Supplies and Services,"3,500.00",Apr-22
Slough Borough Council,807998,Heywood�s Catering,F382,Children & Families,Supplies and Services,"4,342.00",Apr-22
Slough Borough Council,806731,High Hurlands Homes,M26E,Adult Social Care Operations,Supplies and Services,"7,221.53",Apr-22
Slough Borough Council,3250,Hodge Hill Grange H C One Ltd,M15D,Adult Social Care Operations,Supplies and Services,"2,380.00",Apr-22
Slough Borough Council,850,Holy Family Catholic Primary School,E250,Children & Families,Supplies and Services,"180,236.26",Apr-22
Slough Borough Council,807737,Homelink Healthcare Limited,B298,Finance,Supplies and Services,836.88,Apr-22
Slough Borough Council,807737,Homelink Healthcare Limited,B298,Finance,Supplies and Services,"3,521.03",Apr-22
Slough Borough Council,1914,Huntcliff Limited,J006,Place Management,Supplies and Services,"2,075.00",Apr-22
Slough Borough Council,2983,Idox Software Ltd,B282,Digital and Strategic IT,Supplies and Services,"5,141.50",Apr-22
Slough Borough Council,803037,Idox Software Ltd,B282,Digital and Strategic IT,Supplies and Services,"10,649.80",Apr-22
Slough Borough Council,803037,Idox Software Ltd,F144,Children & Families,Supplies and Services,"12,140.00",Apr-22
Slough Borough Council,808183,Immersive Computing Labs Ltd,C406,Communities and Leisure,Supplies and Services,"1,550.00",Apr-22
Slough Borough Council,2917,Imperial Coaches Ltd,F123,Schools,Supplies and Services,"5,405.00",Apr-22
Slough Borough Council,807666,Independence Home and Domicilary Care,M44F,Adult Social Care Operations,Supplies and Services,"2,940.66",Apr-22
Slough Borough Council,807666,Independence Home and Domicilary Care,M44F,Adult Social Care Operations,Supplies and Services,"1,544.58",Apr-22
Slough Borough Council,807666,Independence Home and Domicilary Care,M44F,Adult Social Care Operations,Supplies and Services,"3,381.17",Apr-22
Slough Borough Council,807666,Independence Home and Domicilary Care,M44F,Adult Social Care Operations,Supplies and Services,"1,544.58",Apr-22
Slough Borough Council,807666,Independence Home and Domicilary Care,M44F,Adult Social Care Operations,Supplies and Services,"3,348.00",Apr-22
Slough Borough Council,807666,Independence Home and Domicilary Care,M44F,Adult Social Care Operations,Supplies and Services,"1,544.58",Apr-22
Slough Borough Council,807666,Independence Home and Domicilary Care,M44F,Adult Social Care Operations,Supplies and Services,"1,494.75",Apr-22
Slough Borough Council,807666,Independence Home and Domicilary Care,M44F,Adult Social Care Operations,Supplies and Services,"1,544.58",Apr-22
Slough Borough Council,807666,Independence Home and Domicilary Care,M44F,Adult Social Care Operations,Supplies and Services,"1,544.58",Apr-22
Slough Borough Council,807666,Independence Home and Domicilary Care,M44F,Adult Social Care Operations,Supplies and Services,"1,494.75",Apr-22
Slough Borough Council,807666,Independence Home and Domicilary Care,M44F,Adult Social Care Operations,Supplies and Services,"1,544.58",Apr-22
Slough Borough Council,807666,Independence Home and Domicilary Care,M44F,Adult Social Care Operations,Supplies and Services,"1,494.75",Apr-22
Slough Borough Council,3570,Independent Supported Living And Disabilities Ltd,M44D,Adult Social Care Operations,Supplies and Services,"3,044.16",Apr-22
Slough Borough Council,805325,Instarmac Group plc,D880,Place Operations,Supplies and Services,"2,117.12",Apr-22
Slough Borough Council,3172,Intelligent Transport Services,P187,Capital,Capital Charges,"1,800.00",Apr-22
Slough Borough Council,3172,Intelligent Transport Services,P187,Capital,Capital Charges,900.00,Apr-22
Slough Borough Council,3172,Intelligent Transport Services,P209,Capital,Capital Charges,600.00,Apr-22
Slough Borough Council,3172,Intelligent Transport Services,P209,Capital,Capital Charges,"1,200.00",Apr-22
Slough Borough Council,3172,Intelligent Transport Services,P210,Capital,Capital Charges,900.00,Apr-22
Slough Borough Council,3172,Intelligent Transport Services,P210,Capital,Capital Charges,900.00,Apr-22
Slough Borough Council,3172,Intelligent Transport Services,P213,Capital,Capital Charges,900.00,Apr-22
Slough Borough Council,3172,Intelligent Transport Services,P213,Capital,Capital Charges,900.00,Apr-22
Slough Borough Council,3172,Intelligent Transport Services,D508,Major Infrastructure Projects,Supplies and Services,"6,207.00",Apr-22
Slough Borough Council,807818,Intercity Technology Ltd,B282,Digital and Strategic IT,Supplies and Services,"20,173.34",Apr-22
Slough Borough Council,3500,Iqra Slough Islamic Primary School,E480,Children & Families,Supplies and Services,"87,032.29",Apr-22
Slough Borough Council,998,Iron Mountain Uk Ltd,B282,Digital and Strategic IT,Supplies and Services,589.73,Apr-22
Slough Borough Council,998,Iron Mountain Uk Ltd,B282,Digital and Strategic IT,Supplies and Services,"1,548.06",Apr-22
Slough Borough Council,2919,Islamic Shakhsiyah Foundation,F909,Children & Families,Supplies and Services,"9,007.09",Apr-22
Slough Borough Council,807016,ITRS Group,B282,Digital and Strategic IT,Supplies and Services,"6,117.22",Apr-22
Slough Borough Council,1858,Itso Limited,D512,Major Infrastructure Projects,Supplies and Services,"1,253.00",Apr-22
Slough Borough Council,808305,Ivanti UK,B282,Digital and Strategic IT,Supplies and Services,"15,532.11",Apr-22
Slough Borough Council,807346,Jacaranda,M44F,Adult Social Care Operations,Supplies and Services,"4,379.00",Apr-22
Slough Borough Council,753,Jack In The Box Day Nursery,F909,Children & Families,Supplies and Services,"11,997.83",Apr-22
Slough Borough Council,807347,Jadu Creative Limited,B282,Digital and Strategic IT,Supplies and Services,"104,400.00",Apr-22
Slough Borough Council,733,James Elliman  School,E620,Children & Families,Supplies and Services,"24,106.66",Apr-22
Slough Borough Council,805666,James Rosental,C322,Communities and Leisure,Supplies and Services,"2,058.00",Apr-22
Slough Borough Council,805226,JD Surfacing & Civil Engineering Limited,D880,Place Operations,Supplies and Services,"7,560.00",Apr-22
Slough Borough Council,805226,JD Surfacing & Civil Engineering Limited,D880,Place Operations,Supplies and Services,"2,975.00",Apr-22
Slough Borough Council,805226,JD Surfacing & Civil Engineering Limited,D880,Place Operations,Supplies and Services,"7,560.00",Apr-22
Slough Borough Council,805226,JD Surfacing & Civil Engineering Limited,D880,Place Operations,Supplies and Services,"14,038.55",Apr-22
Slough Borough Council,805226,JD Surfacing & Civil Engineering Limited,D880,Place Operations,Supplies and Services,"7,560.00",Apr-22
Slough Borough Council,805226,JD Surfacing & Civil Engineering Limited,D880,Place Operations,Supplies and Services,"1,855.00",Apr-22
Slough Borough Council,805226,JD Surfacing & Civil Engineering Limited,D880,Place Operations,Supplies and Services,"2,445.00",Apr-22
Slough Borough Council,805226,JD Surfacing & Civil Engineering Limited,D880,Place Operations,Supplies and Services,"14,669.80",Apr-22
Slough Borough Council,805226,JD Surfacing & Civil Engineering Limited,D880,Place Operations,Supplies and Services,"5,825.51",Apr-22
Slough Borough Council,805226,JD Surfacing & Civil Engineering Limited,D880,Place Operations,Supplies and Services,"11,236.04",Apr-22
Slough Borough Council,805226,JD Surfacing & Civil Engineering Limited,D880,Place Operations,Supplies and Services,"2,445.00",Apr-22
Slough Borough Council,805226,JD Surfacing & Civil Engineering Limited,D880,Place Operations,Supplies and Services,"1,855.00",Apr-22
Slough Borough Council,805226,JD Surfacing & Civil Engineering Limited,D880,Place Operations,Supplies and Services,"7,560.00",Apr-22
Slough Borough Council,805226,JD Surfacing & Civil Engineering Limited,D880,Place Operations,Supplies and Services,"1,484.00",Apr-22
Slough Borough Council,807308,JLA Total Care Ltd,H205,Housing (People) Services,Supplies and Services,675.65,Apr-22
Slough Borough Council,807308,JLA Total Care Ltd,H205,Housing (People) Services,Supplies and Services,675.65,Apr-22
Slough Borough Council,807308,JLA Total Care Ltd,H205,Housing (People) Services,Supplies and Services,675.65,Apr-22
Slough Borough Council,807339,Joymac Care Ltd,B324,Finance,Government Grants,555.32,Apr-22
Slough Borough Council,804848,JPH Social Work LTD,B409,People,Supplies and Services,"3,375.00",Apr-22
Slough Borough Council,804848,JPH Social Work LTD,B409,People,Supplies and Services,750.00,Apr-22
Slough Borough Council,201,Kamal Enterprises Ltd,A04C,Adult Social Care Commissioning,Supplies and Services,513.00,Apr-22
Slough Borough Council,803815,Kathys Childcare,F909,Children & Families,Supplies and Services,"1,315.32",Apr-22
Slough Borough Council,2620,Kcare Nursing Agency Ltd,B324,Finance,Supplies and Services,"1,444.62",Apr-22
Slough Borough Council,2620,Kcare Nursing Agency Ltd,M48C,Adult Social Care Operations,Supplies and Services,942.60,Apr-22
Slough Borough Council,2620,Kcare Nursing Agency Ltd,B324,Finance,Government Grants,"1,041.23",Apr-22
Slough Borough Council,663,Kent County Council,F462,Children & Families,Supplies and Services,"17,223.83",Apr-22
Slough Borough Council,808146,Kents Hill Care Home,M18C,Adult Social Care Operations,Supplies and Services,"3,764.29",Apr-22
Slough Borough Council,807742,Khalsa Primary School,E620,Children & Families,Supplies and Services,"10,136.66",Apr-22
Slough Borough Council,803916,Kharis Solutions,M44C,Adult Social Care Operations,Supplies and Services,"2,278.00",Apr-22
Slough Borough Council,803916,Kharis Solutions,M44C,Adult Social Care Operations,Supplies and Services,"1,793.50",Apr-22
Slough Borough Council,803916,Kharis Solutions,M44C,Adult Social Care Operations,Supplies and Services,"1,428.00",Apr-22
Slough Borough Council,803916,Kharis Solutions,M44C,Adult Social Care Operations,Supplies and Services,"1,904.00",Apr-22
Slough Borough Council,803916,Kharis Solutions,M44C,Adult Social Care Operations,Supplies and Services,"1,411.00",Apr-22
Slough Borough Council,803916,Kharis Solutions,M44C,Adult Social Care Operations,Supplies and Services,"1,904.00",Apr-22
Slough Borough Council,803916,Kharis Solutions,M44D,Adult Social Care Operations,Supplies and Services,"2,142.00",Apr-22
Slough Borough Council,803916,Kharis Solutions,M44E,Adult Social Care Operations,Supplies and Services,"7,188.00",Apr-22
Slough Borough Council,803916,Kharis Solutions,M44E,Adult Social Care Operations,Supplies and Services,"7,188.00",Apr-22
Slough Borough Council,803916,Kharis Solutions,M44E,Adult Social Care Operations,Supplies and Services,"7,188.00",Apr-22
Slough Borough Council,803916,Kharis Solutions,M44E,Adult Social Care Operations,Supplies and Services,900.00,Apr-22
Slough Borough Council,803916,Kharis Solutions,M44E,Adult Social Care Operations,Supplies and Services,600.00,Apr-22
Slough Borough Council,803916,Kharis Solutions,M44E,Adult Social Care Operations,Supplies and Services,900.00,Apr-22
Slough Borough Council,803916,Kharis Solutions,M44E,Adult Social Care Operations,Supplies and Services,900.00,Apr-22
Slough Borough Council,803916,Kharis Solutions,M48C,Adult Social Care Operations,Supplies and Services,"2,210.00",Apr-22
Slough Borough Council,807911,Kidz Enterprise LTD,F382,Children & Families,Supplies and Services,"1,216.00",Apr-22
Slough Borough Council,807411,Kier Construction Limited T/A Kier Construction Southern,P204,Capital,Capital Charges,"43,070.04",Apr-22
Slough Borough Council,807411,Kier Construction Limited T/A Kier Construction Southern,P204,Capital,Capital Charges,"3,930.08",Apr-22
Slough Borough Council,664,Langley Grammar School,E610,Children & Families,Supplies and Services,"65,663.34",Apr-22
Slough Borough Council,1699,Langley Hall Primary Academy,E620,Children & Families,Supplies and Services,"3,125.00",Apr-22
Slough Borough Council,3001,Langley Haven Care Homes Ltd,B324,Finance,Supplies and Services,"2,005.33",Apr-22
Slough Borough Council,3001,Langley Haven Care Homes Ltd,M25C,Adult Social Care Operations,Supplies and Services,"3,488.40",Apr-22
Slough Borough Council,3001,Langley Haven Care Homes Ltd,M25C,Adult Social Care Operations,Supplies and Services,"3,488.40",Apr-22
Slough Borough Council,3001,Langley Haven Care Homes Ltd,M26E,Adult Social Care Operations,Supplies and Services,"3,600.00",Apr-22
Slough Borough Council,3001,Langley Haven Care Homes Ltd,M26E,Adult Social Care Operations,Supplies and Services,"3,600.00",Apr-22
Slough Borough Council,3001,Langley Haven Care Homes Ltd,M27C,Adult Social Care Operations,Supplies and Services,"3,488.40",Apr-22
Slough Borough Council,3001,Langley Haven Care Homes Ltd,M27C,Adult Social Care Operations,Supplies and Services,"3,488.40",Apr-22
Slough Borough Council,3001,Langley Haven Care Homes Ltd,M27C,Adult Social Care Operations,Supplies and Services,"3,488.40",Apr-22
Slough Borough Council,3001,Langley Haven Care Homes Ltd,M27C,Adult Social Care Operations,Supplies and Services,"3,488.40",Apr-22
Slough Borough Council,3001,Langley Haven Care Homes Ltd,M27F,Adult Social Care Operations,Supplies and Services,"3,488.40",Apr-22
Slough Borough Council,3001,Langley Haven Care Homes Ltd,M27F,Adult Social Care Operations,Supplies and Services,"3,488.40",Apr-22
Slough Borough Council,3001,Langley Haven Care Homes Ltd,M27F,Adult Social Care Operations,Supplies and Services,"3,857.14",Apr-22
Slough Borough Council,3001,Langley Haven Care Homes Ltd,M27F,Adult Social Care Operations,Supplies and Services,-900.00,Apr-22
Slough Borough Council,3001,Langley Haven Care Homes Ltd,M27F,Adult Social Care Operations,Supplies and Services,"1,680.00",Apr-22
Slough Borough Council,3001,Langley Haven Care Homes Ltd,M27F,Adult Social Care Operations,Supplies and Services,"1,821.43",Apr-22
Slough Borough Council,3001,Langley Haven Care Homes Ltd,M27F,Adult Social Care Operations,Supplies and Services,"3,488.40",Apr-22
Slough Borough Council,3001,Langley Haven Care Homes Ltd,M29C,Adult Social Care Operations,Supplies and Services,"3,488.40",Apr-22
Slough Borough Council,3001,Langley Haven Care Homes Ltd,B324,Finance,Government Grants,"2,776.62",Apr-22
Slough Borough Council,803686,Lascelles Park Nursery,F909,Children & Families,Supplies and Services,"17,552.68",Apr-22
Slough Borough Council,1077,Lavat Consulting Limited,B015,Finance,Supplies and Services,"2,950.00",Apr-22
Slough Borough Council,3482,Leonard Cheshire Disability,M25D,Adult Social Care Operations,Supplies and Services,"5,608.87",Apr-22
Slough Borough Council,3482,Leonard Cheshire Disability,M26E,Adult Social Care Operations,Supplies and Services,"6,207.48",Apr-22
Slough Borough Council,3482,Leonard Cheshire Disability,M26E,Adult Social Care Operations,Supplies and Services,"6,207.48",Apr-22
Slough Borough Council,3482,Leonard Cheshire Disability,M26E,Adult Social Care Operations,Supplies and Services,"5,606.76",Apr-22
Slough Borough Council,3482,Leonard Cheshire Disability,M26E,Adult Social Care Operations,Supplies and Services,"6,007.24",Apr-22
Slough Borough Council,3482,Leonard Cheshire Disability,M26E,Adult Social Care Operations,Supplies and Services,"6,207.48",Apr-22
Slough Borough Council,1513,Lex Autolease Limited,M50A,Major Infrastructure Projects,Supplies and Services,"1,910.00",Apr-22
Slough Borough Council,397,Liquidlogic,A03D,Adult Social Care Operations,Supplies and Services,"63,505.28",Apr-22
Slough Borough Council,397,Liquidlogic,B277,Digital and Strategic IT,Supplies and Services,"75,850.81",Apr-22
Slough Borough Council,804692,Little Diamonds Pre School,F909,Children & Families,Supplies and Services,"18,649.29",Apr-22
Slough Borough Council,808192,Little Musketeers,F382,Children & Families,Supplies and Services,"4,576.00",Apr-22
Slough Borough Council,3791,Littledown Pru,E610,Children & Families,Supplies and Services,"17,100.00",Apr-22
Slough Borough Council,667,Littledown School,E610,Children & Families,Supplies and Services,"73,750.03",Apr-22
Slough Borough Council,1282,Long Close School,F550,Children & Families,Supplies and Services,"4,620.00",Apr-22
Slough Borough Council,1282,Long Close School,F909,Children & Families,Supplies and Services,"6,859.24",Apr-22
Slough Borough Council,804585,Longlea Ltd,M18C,Adult Social Care Operations,Supplies and Services,"3,857.14",Apr-22
Slough Borough Council,2302,Look Ahead Care And Support,B324,Finance,Supplies and Services,"1,160.06",Apr-22
Slough Borough Council,3910,Lookahead Care & Support,H216,Community,Supplies and Services,"2,022.72",Apr-22
Slough Borough Council,807840,Lumen,B282,Digital and Strategic IT,Supplies and Services,"4,109.90",Apr-22
Slough Borough Council,1195,Lynch Hill (Foundation Primary) School,E620,Children & Families,Supplies and Services,"31,516.66",Apr-22
Slough Borough Council,1771,Lynch Hill Academy,E620,Children & Families,Supplies and Services,"11,124.99",Apr-22
Slough Borough Council,807217,Macadamia Support Limited,M42E,Adult Social Care Operations,Supplies and Services,"6,931.20",Apr-22
Slough Borough Council,807217,Macadamia Support Limited,M42E,Adult Social Care Operations,Supplies and Services,"6,713.00",Apr-22
Slough Borough Council,807217,Macadamia Support Limited,M42E,Adult Social Care Operations,Supplies and Services,"3,973.20",Apr-22
Slough Borough Council,807217,Macadamia Support Limited,M42E,Adult Social Care Operations,Supplies and Services,"7,308.00",Apr-22
Slough Borough Council,807217,Macadamia Support Limited,M42E,Adult Social Care Operations,Supplies and Services,"3,589.12",Apr-22
Slough Borough Council,807217,Macadamia Support Limited,M44C,Adult Social Care Operations,Supplies and Services,"3,591.56",Apr-22
Slough Borough Council,807217,Macadamia Support Limited,M44D,Adult Social Care Operations,Supplies and Services,"5,523.00",Apr-22
Slough Borough Council,1652,Maps Legal Assistance,B018,Finance,Supplies and Services,"1,575.00",Apr-22
Slough Borough Council,529,Marish Primary School,E620,Children & Families,Supplies and Services,"104,904.98",Apr-22
Slough Borough Council,1886,Matrix Scm,B023,Finance & Commercial,Agency Staff,"322,065.39",Apr-22
Slough Borough Council,1886,Matrix Scm,B023,Finance & Commercial,Agency Staff,"259,003.15",Apr-22
Slough Borough Council,1886,Matrix Scm,B023,Finance & Commercial,Agency Staff,"329,899.79",Apr-22
Slough Borough Council,1886,Matrix Scm,B023,Finance & Commercial,Agency Staff,"292,451.84",Apr-22
Slough Borough Council,1886,Matrix Scm,B023,Finance & Commercial,Agency Staff,"297,735.37",Apr-22
Slough Borough Council,2237,Metts Ltd,M50A,Major Infrastructure Projects,Transport,654.75,Apr-22
Slough Borough Council,1496,Mighty Acorns Day Nursery Ltd,F909,Children & Families,Supplies and Services,800.00,Apr-22
Slough Borough Council,1496,Mighty Acorns Day Nursery Ltd,F909,Children & Families,Supplies and Services,"16,235.90",Apr-22
Slough Borough Council,1879,Mj Events Support Limited,B310,Finance,Supplies and Services,630.00,Apr-22
Slough Borough Council,1879,Mj Events Support Limited,B310,Finance,Supplies and Services,"14,496.00",Apr-22
Slough Borough Council,805121,MMCG (2) Limited,M15D,Adult Social Care Operations,Supplies and Services,"3,557.25",Apr-22
Slough Borough Council,805121,MMCG (2) Limited,M15F,Adult Social Care Operations,Supplies and Services,"3,557.25",Apr-22
Slough Borough Council,805121,MMCG (2) Limited,M17C,Adult Social Care Operations,Supplies and Services,"4,031.55",Apr-22
Slough Borough Council,805121,MMCG (2) Limited,M17C,Adult Social Care Operations,Supplies and Services,"3,557.25",Apr-22
Slough Borough Council,805121,MMCG (2) Limited,M17C,Adult Social Care Operations,Supplies and Services,"4,387.30",Apr-22
Slough Borough Council,805121,MMCG (2) Limited,M17C,Adult Social Care Operations,Supplies and Services,"4,031.55",Apr-22
Slough Borough Council,805121,MMCG (2) Limited,M17C,Adult Social Care Operations,Supplies and Services,"3,557.25",Apr-22
Slough Borough Council,805121,MMCG (2) Limited,M18C,Adult Social Care Operations,Supplies and Services,"4,031.55",Apr-22
Slough Borough Council,805121,MMCG (2) Limited,M18C,Adult Social Care Operations,Supplies and Services,"3,557.25",Apr-22
Slough Borough Council,805121,MMCG (2) Limited,M18C,Adult Social Care Operations,Supplies and Services,"3,557.25",Apr-22
Slough Borough Council,805121,MMCG (2) Limited,M18C,Adult Social Care Operations,Supplies and Services,"3,557.25",Apr-22
Slough Borough Council,805121,MMCG (2) Limited,M18C,Adult Social Care Operations,Supplies and Services,"3,557.25",Apr-22
Slough Borough Council,805121,MMCG (2) Limited,M18C,Adult Social Care Operations,Supplies and Services,"4,387.30",Apr-22
Slough Borough Council,805121,MMCG (2) Limited,M18C,Adult Social Care Operations,Supplies and Services,"3,557.25",Apr-22
Slough Borough Council,805121,MMCG (2) Limited,M25C,Adult Social Care Operations,Supplies and Services,"3,557.25",Apr-22
Slough Borough Council,805121,MMCG (2) Limited,M25C,Adult Social Care Operations,Supplies and Services,"3,557.25",Apr-22
Slough Borough Council,805121,MMCG (2) Limited,M25C,Adult Social Care Operations,Supplies and Services,"3,557.25",Apr-22
Slough Borough Council,805121,MMCG (2) Limited,M25C,Adult Social Care Operations,Supplies and Services,"3,557.25",Apr-22
Slough Borough Council,805121,MMCG (2) Limited,M25C,Adult Social Care Operations,Supplies and Services,"3,213.00",Apr-22
Slough Borough Council,805121,MMCG (2) Limited,M25C,Adult Social Care Operations,Supplies and Services,"3,557.25",Apr-22
Slough Borough Council,805121,MMCG (2) Limited,M25C,Adult Social Care Operations,Supplies and Services,"3,557.25",Apr-22
Slough Borough Council,805121,MMCG (2) Limited,M25C,Adult Social Care Operations,Supplies and Services,"3,557.25",Apr-22
Slough Borough Council,805121,MMCG (2) Limited,M25C,Adult Social Care Operations,Supplies and Services,"3,213.00",Apr-22
Slough Borough Council,805121,MMCG (2) Limited,M25C,Adult Social Care Operations,Supplies and Services,"3,557.25",Apr-22
Slough Borough Council,805121,MMCG (2) Limited,M27C,Adult Social Care Operations,Supplies and Services,"3,557.25",Apr-22
Slough Borough Council,805121,MMCG (2) Limited,M27C,Adult Social Care Operations,Supplies and Services,"3,557.25",Apr-22
Slough Borough Council,805121,MMCG (2) Limited,M27C,Adult Social Care Operations,Supplies and Services,"3,557.25",Apr-22
Slough Borough Council,805121,MMCG (2) Limited,M27C,Adult Social Care Operations,Supplies and Services,"3,557.25",Apr-22
Slough Borough Council,805121,MMCG (2) Limited,M27C,Adult Social Care Operations,Supplies and Services,"3,557.25",Apr-22
Slough Borough Council,805121,MMCG (2) Limited,M27C,Adult Social Care Operations,Supplies and Services,"3,557.25",Apr-22
Slough Borough Council,805121,MMCG (2) Limited,M28C,Adult Social Care Operations,Supplies and Services,990.85,Apr-22
Slough Borough Council,805121,MMCG (2) Limited,M28C,Adult Social Care Operations,Supplies and Services,"2,972.55",Apr-22
Slough Borough Council,805121,MMCG (2) Limited,M28C,Adult Social Care Operations,Supplies and Services,"1,575.00",Apr-22
Slough Borough Council,805121,MMCG (2) Limited,M28C,Adult Social Care Operations,Supplies and Services,787.50,Apr-22
Slough Borough Council,805121,MMCG (2) Limited,A06C,Adult Social Care Commissioning,Supplies and Services,-562.80,Apr-22
Slough Borough Council,2645,Modus Care Ltd,M26E,Adult Social Care Operations,Supplies and Services,"10,804.39",Apr-22
Slough Borough Council,804815,Molly Southall,C322,Communities and Leisure,Supplies and Services,"1,179.00",Apr-22
Slough Borough Council,2115,Montagu Evans Llp,B091,Place Strategy & Infrastructure,Supplies and Services,"8,000.00",Apr-22
Slough Borough Council,2115,Montagu Evans Llp,B086,Place Strategy & Infrastructure,Capital Charges,"19,000.00",Apr-22
Slough Borough Council,2115,Montagu Evans Llp,B086,Place Strategy & Infrastructure,Capital Charges,"19,000.00",Apr-22
Slough Borough Council,1140,Montem Guesthouse,H205,Housing (People) Services,Supplies and Services,765.00,Apr-22
Slough Borough Council,1140,Montem Guesthouse,H205,Housing (People) Services,Supplies and Services,"1,395.00",Apr-22
Slough Borough Council,1140,Montem Guesthouse,H205,Housing (People) Services,Supplies and Services,"1,395.00",Apr-22
Slough Borough Council,1140,Montem Guesthouse,H205,Housing (People) Services,Supplies and Services,810.00,Apr-22
Slough Borough Council,1140,Montem Guesthouse,H205,Housing (People) Services,Supplies and Services,"1,550.00",Apr-22
Slough Borough Council,1140,Montem Guesthouse,H205,Housing (People) Services,Supplies and Services,"1,395.00",Apr-22
Slough Borough Council,1140,Montem Guesthouse,H205,Housing (People) Services,Supplies and Services,"1,375.00",Apr-22
Slough Borough Council,1140,Montem Guesthouse,H205,Housing (People) Services,Supplies and Services,"1,260.00",Apr-22
Slough Borough Council,1140,Montem Guesthouse,H205,Housing (People) Services,Supplies and Services,"1,705.00",Apr-22
Slough Borough Council,1140,Montem Guesthouse,H205,Housing (People) Services,Supplies and Services,675.00,Apr-22
Slough Borough Council,1140,Montem Guesthouse,H205,Housing (People) Services,Supplies and Services,"1,860.00",Apr-22
Slough Borough Council,1140,Montem Guesthouse,H205,Housing (People) Services,Supplies and Services,"1,550.00",Apr-22
Slough Borough Council,1140,Montem Guesthouse,H205,Housing (People) Services,Supplies and Services,"1,705.00",Apr-22
Slough Borough Council,1140,Montem Guesthouse,H205,Housing (People) Services,Supplies and Services,"1,705.00",Apr-22
Slough Borough Council,1140,Montem Guesthouse,H205,Housing (People) Services,Supplies and Services,"1,395.00",Apr-22
Slough Borough Council,1140,Montem Guesthouse,H205,Housing (People) Services,Supplies and Services,630.00,Apr-22
Slough Borough Council,1140,Montem Guesthouse,H205,Housing (People) Services,Supplies and Services,500.00,Apr-22
Slough Borough Council,1140,Montem Guesthouse,H205,Housing (People) Services,Supplies and Services,980.00,Apr-22
Slough Borough Council,1140,Montem Guesthouse,H205,Housing (People) Services,Supplies and Services,"1,550.00",Apr-22
Slough Borough Council,1140,Montem Guesthouse,H205,Housing (People) Services,Supplies and Services,"1,085.00",Apr-22
Slough Borough Council,1140,Montem Guesthouse,H205,Housing (People) Services,Supplies and Services,"1,395.00",Apr-22
Slough Borough Council,1140,Montem Guesthouse,H205,Housing (People) Services,Supplies and Services,700.00,Apr-22
Slough Borough Council,1140,Montem Guesthouse,H205,Housing (People) Services,Supplies and Services,"1,400.00",Apr-22
Slough Borough Council,1140,Montem Guesthouse,H205,Housing (People) Services,Supplies and Services,"1,395.00",Apr-22
Slough Borough Council,1140,Montem Guesthouse,H205,Housing (People) Services,Supplies and Services,"1,395.00",Apr-22
Slough Borough Council,1140,Montem Guesthouse,H205,Housing (People) Services,Supplies and Services,"1,240.00",Apr-22
Slough Borough Council,1140,Montem Guesthouse,H205,Housing (People) Services,Supplies and Services,"1,705.00",Apr-22
Slough Borough Council,1140,Montem Guesthouse,H205,Housing (People) Services,Supplies and Services,"1,540.00",Apr-22
Slough Borough Council,1140,Montem Guesthouse,H205,Housing (People) Services,Supplies and Services,"1,260.00",Apr-22
Slough Borough Council,1140,Montem Guesthouse,H205,Housing (People) Services,Supplies and Services,"1,260.00",Apr-22
Slough Borough Council,1140,Montem Guesthouse,H205,Housing (People) Services,Supplies and Services,"1,260.00",Apr-22
Slough Borough Council,1140,Montem Guesthouse,H205,Housing (People) Services,Supplies and Services,990.00,Apr-22
Slough Borough Council,1140,Montem Guesthouse,H205,Housing (People) Services,Supplies and Services,"1,260.00",Apr-22
Slough Borough Council,1140,Montem Guesthouse,H205,Housing (People) Services,Supplies and Services,"1,400.00",Apr-22
Slough Borough Council,1140,Montem Guesthouse,H205,Housing (People) Services,Supplies and Services,"1,540.00",Apr-22
Slough Borough Council,1140,Montem Guesthouse,H205,Housing (People) Services,Supplies and Services,"1,540.00",Apr-22
Slough Borough Council,1140,Montem Guesthouse,H205,Housing (People) Services,Supplies and Services,"1,320.00",Apr-22
Slough Borough Council,1140,Montem Guesthouse,H205,Housing (People) Services,Supplies and Services,"1,550.00",Apr-22
Slough Borough Council,1140,Montem Guesthouse,H205,Housing (People) Services,Supplies and Services,"1,395.00",Apr-22
Slough Borough Council,1140,Montem Guesthouse,H205,Housing (People) Services,Supplies and Services,"1,395.00",Apr-22
Slough Borough Council,1140,Montem Guesthouse,H205,Housing (People) Services,Supplies and Services,700.00,Apr-22
Slough Borough Council,1140,Montem Guesthouse,H205,Housing (People) Services,Supplies and Services,"1,400.00",Apr-22
Slough Borough Council,1140,Montem Guesthouse,H205,Housing (People) Services,Supplies and Services,"1,250.00",Apr-22
Slough Borough Council,1140,Montem Guesthouse,H205,Housing (People) Services,Supplies and Services,"1,120.00",Apr-22
Slough Borough Council,1140,Montem Guesthouse,H205,Housing (People) Services,Supplies and Services,"1,260.00",Apr-22
Slough Borough Council,1140,Montem Guesthouse,H205,Housing (People) Services,Supplies and Services,"1,260.00",Apr-22
Slough Borough Council,1140,Montem Guesthouse,H205,Housing (People) Services,Supplies and Services,605.00,Apr-22
Slough Borough Council,1140,Montem Guesthouse,H205,Housing (People) Services,Supplies and Services,"1,260.00",Apr-22
Slough Borough Council,1140,Montem Guesthouse,H205,Housing (People) Services,Supplies and Services,550.00,Apr-22
Slough Borough Council,1140,Montem Guesthouse,H205,Housing (People) Services,Supplies and Services,"1,260.00",Apr-22
Slough Borough Council,1140,Montem Guesthouse,H205,Housing (People) Services,Supplies and Services,"1,400.00",Apr-22
Slough Borough Council,1140,Montem Guesthouse,H205,Housing (People) Services,Supplies and Services,"1,400.00",Apr-22
Slough Borough Council,1140,Montem Guesthouse,H205,Housing (People) Services,Supplies and Services,"1,260.00",Apr-22
Slough Borough Council,1140,Montem Guesthouse,H205,Housing (People) Services,Supplies and Services,"1,260.00",Apr-22
Slough Borough Council,1140,Montem Guesthouse,H205,Housing (People) Services,Supplies and Services,"1,395.00",Apr-22
Slough Borough Council,3302,Montem Primary School,E620,Children & Families,Supplies and Services,"32,079.99",Apr-22
Slough Borough Council,805354,Morelock Signs Limited,D124,Place Strategy & Infrastructure,Supplies and Services,"1,083.88",Apr-22
Slough Borough Council,807432,MPD FM Limited,A07M,Mental Health Services,Agency Staff,"5,686.83",Apr-22
Slough Borough Council,807432,MPD FM Limited,B086,Place Strategy & Infrastructure,Premises,"7,878.96",Apr-22
Slough Borough Council,806484,Mrs Parwinder Kaur Bhandal,H205,Housing (People) Services,Supplies and Services,"2,754.00",Apr-22
Slough Borough Council,806484,Mrs Parwinder Kaur Bhandal,H205,Housing (People) Services,Supplies and Services,"6,562.00",Apr-22
Slough Borough Council,804936,Ms. Marinela Caldarus,F382,Children & Families,Supplies and Services,780.00,Apr-22
Slough Borough Council,806858,MUDDY BOOTS DAY NURSERY LTD,F909,Children & Families,Supplies and Services,"6,081.95",Apr-22
Slough Borough Council,806264,NAL Ltd,D880,Place Operations,Supplies and Services,"7,705.44",Apr-22
Slough Borough Council,806264,NAL Ltd,D880,Place Operations,Supplies and Services,"1,030.40",Apr-22
Slough Borough Council,806264,NAL Ltd,D880,Place Operations,Supplies and Services,"1,740.40",Apr-22
Slough Borough Council,806264,NAL Ltd,D880,Place Operations,Supplies and Services,"1,306.30",Apr-22
Slough Borough Council,805369,NAS Services Limited,M42E,Adult Social Care Operations,Supplies and Services,"8,170.11",Apr-22
Slough Borough Council,672,Ncc Services Ltd,B282,Digital and Strategic IT,Supplies and Services,"6,450.00",Apr-22
Slough Borough Council,1074,Ncfe,F210,Community,Supplies and Services,748.00,Apr-22
Slough Borough Council,804696,Net World Sports,C406,Communities and Leisure,Supplies and Services,"1,223.94",Apr-22
Slough Borough Council,805194,New City Scales Ltd,D630,Place Operations,Supplies and Services,695.00,Apr-22
Slough Borough Council,601,Nfer Trading Ltd,C003,Place Operations,Supplies and Services,"4,970.64",Apr-22
Slough Borough Council,601,Nfer Trading Ltd,C003,Place Operations,Supplies and Services,996.99,Apr-22
Slough Borough Council,601,Nfer Trading Ltd,C003,Place Operations,Supplies and Services,"1,535.50",Apr-22
Slough Borough Council,601,Nfer Trading Ltd,C003,Place Operations,Supplies and Services,"2,022.35",Apr-22
Slough Borough Council,805932,NHS East Berkshire CCG,A04C,Adult Social Care Commissioning,Supplies and Services,"17,611.72",Apr-22
Slough Borough Council,3717,Norwood Schools Limited,M26E,Adult Social Care Operations,Supplies and Services,"4,064.58",Apr-22
Slough Borough Council,3717,Norwood Schools Limited,M26E,Adult Social Care Operations,External Receipts,-633.10,Apr-22
Slough Borough Council,1343,Novacroft,D512,Major Infrastructure Projects,Supplies and Services,"3,298.14",Apr-22
Slough Borough Council,1343,Novacroft,D512,Major Infrastructure Projects,Supplies and Services,"2,300.00",Apr-22
Slough Borough Council,1343,Novacroft,D512,Major Infrastructure Projects,Supplies and Services,"2,700.00",Apr-22
Slough Borough Council,2021,Now Medical,H207,Housing (People) Services,Supplies and Services,645.00,Apr-22
Slough Borough Council,803238,Oasis Care and Training Agency,M42C,Adult Social Care Operations,Supplies and Services,"1,443.96",Apr-22
Slough Borough Council,803238,Oasis Care and Training Agency,M44C,Adult Social Care Operations,Supplies and Services,"2,784.80",Apr-22
Slough Borough Council,803238,Oasis Care and Training Agency,M44C,Adult Social Care Operations,Supplies and Services,"1,203.32",Apr-22
Slough Borough Council,803238,Oasis Care and Training Agency,M44C,Adult Social Care Operations,Supplies and Services,"2,165.96",Apr-22
Slough Borough Council,803238,Oasis Care and Training Agency,M44C,Adult Social Care Operations,Supplies and Services,"1,203.32",Apr-22
Slough Borough Council,803238,Oasis Care and Training Agency,M44C,Adult Social Care Operations,Supplies and Services,"2,681.64",Apr-22
Slough Borough Council,803238,Oasis Care and Training Agency,M44C,Adult Social Care Operations,Supplies and Services,"2,440.10",Apr-22
Slough Borough Council,803238,Oasis Care and Training Agency,M44C,Adult Social Care Operations,Supplies and Services,"2,045.60",Apr-22
Slough Borough Council,803238,Oasis Care and Training Agency,M44C,Adult Social Care Operations,Supplies and Services,842.32,Apr-22
Slough Borough Council,803238,Oasis Care and Training Agency,M44C,Adult Social Care Operations,Supplies and Services,601.64,Apr-22
Slough Borough Council,803238,Oasis Care and Training Agency,M44C,Adult Social Care Operations,Supplies and Services,"1,203.32",Apr-22
Slough Borough Council,803238,Oasis Care and Training Agency,M44C,Adult Social Care Operations,Supplies and Services,"1,259.17",Apr-22
Slough Borough Council,803238,Oasis Care and Training Agency,M44C,Adult Social Care Operations,Supplies and Services,962.64,Apr-22
Slough Borough Council,803238,Oasis Care and Training Agency,M44C,Adult Social Care Operations,Supplies and Services,"1,370.91",Apr-22
Slough Borough Council,803238,Oasis Care and Training Agency,M44D,Adult Social Care Operations,Supplies and Services,"2,165.96",Apr-22
Slough Borough Council,803238,Oasis Care and Training Agency,M44D,Adult Social Care Operations,Supplies and Services,670.40,Apr-22
Slough Borough Council,803238,Oasis Care and Training Agency,M44D,Adult Social Care Operations,Supplies and Services,842.32,Apr-22
Slough Borough Council,803238,Oasis Care and Training Agency,M44D,Adult Social Care Operations,Supplies and Services,979.84,Apr-22
Slough Borough Council,803238,Oasis Care and Training Agency,M44D,Adult Social Care Operations,Supplies and Services,842.32,Apr-22
Slough Borough Council,803238,Oasis Care and Training Agency,M44D,Adult Social Care Operations,Supplies and Services,"1,340.84",Apr-22
Slough Borough Council,803238,Oasis Care and Training Agency,M44D,Adult Social Care Operations,Supplies and Services,"2,165.96",Apr-22
Slough Borough Council,803238,Oasis Care and Training Agency,M44D,Adult Social Care Operations,Supplies and Services,"1,323.64",Apr-22
Slough Borough Council,803238,Oasis Care and Training Agency,M44D,Adult Social Care Operations,Supplies and Services,979.84,Apr-22
Slough Borough Council,803238,Oasis Care and Training Agency,M44F,Adult Social Care Operations,Supplies and Services,"1,375.20",Apr-22
Slough Borough Council,803238,Oasis Care and Training Agency,M44F,Adult Social Care Operations,Supplies and Services,"4,331.88",Apr-22
Slough Borough Council,803238,Oasis Care and Training Agency,M45C,Adult Social Care Operations,Supplies and Services,"2,165.96",Apr-22
Slough Borough Council,803238,Oasis Care and Training Agency,M45C,Adult Social Care Operations,Supplies and Services,"1,443.96",Apr-22
Slough Borough Council,803238,Oasis Care and Training Agency,M48C,Adult Social Care Operations,Supplies and Services,"9,576.00",Apr-22
Slough Borough Council,1767,Olive Tree Montessori Ltd,F909,Children & Families,Supplies and Services,"1,200.00",Apr-22
Slough Borough Council,1767,Olive Tree Montessori Ltd,F909,Children & Families,Supplies and Services,"20,748.05",Apr-22
Slough Borough Council,3603,Olympia Transport Limited,F123,Schools,Supplies and Services,"4,759.72",Apr-22
Slough Borough Council,332,Olympic Workwear,C322,Communities and Leisure,Supplies and Services,829.40,Apr-22
Slough Borough Council,808326,One Plus One Marriage and Partnership Research,F144,Children & Families,Indirect Employee Expenses,"2,500.00",Apr-22
Slough Borough Council,803490,Optimum Specialised Home Limited,B324,Finance,Supplies and Services,"1,002.67",Apr-22
Slough Borough Council,803490,Optimum Specialised Home Limited,M26E,Adult Social Care Operations,Supplies and Services,"2,100.00",Apr-22
Slough Borough Council,803490,Optimum Specialised Home Limited,M26E,Adult Social Care Operations,Supplies and Services,"2,100.00",Apr-22
Slough Borough Council,803490,Optimum Specialised Home Limited,M26E,Adult Social Care Operations,Supplies and Services,"2,100.00",Apr-22
Slough Borough Council,803490,Optimum Specialised Home Limited,M26E,Adult Social Care Operations,Supplies and Services,"2,100.00",Apr-22
Slough Borough Council,803490,Optimum Specialised Home Limited,M26E,Adult Social Care Operations,Supplies and Services,"1,795.00",Apr-22
Slough Borough Council,803490,Optimum Specialised Home Limited,M26E,Adult Social Care Operations,Supplies and Services,"1,795.00",Apr-22
Slough Borough Council,803490,Optimum Specialised Home Limited,M26E,Adult Social Care Operations,Supplies and Services,"1,795.00",Apr-22
Slough Borough Council,803490,Optimum Specialised Home Limited,M26E,Adult Social Care Operations,Supplies and Services,"1,795.00",Apr-22
Slough Borough Council,803490,Optimum Specialised Home Limited,B324,Finance,Government Grants,555.32,Apr-22
Slough Borough Council,803490,Optimum Specialised Home Limited,B324,Finance,Government Grants,"1,388.31",Apr-22
Slough Borough Council,1629,Opus Energy Limited,K526,Building Management,Premises,"15,605.50",Apr-22
Slough Borough Council,1629,Opus Energy Limited,K526,Building Management,Premises,"11,164.23",Apr-22
Slough Borough Council,805011,Osborne Property Services Limited,P431,Capital,Supplies and Services,"334,530.44",Apr-22
Slough Borough Council,805011,Osborne Property Services Limited,J607,Place Management,Premises,"113,191.37",Apr-22
Slough Borough Council,805011,Osborne Property Services Limited,J607,Place Management,Premises,"110,288.03",Apr-22
Slough Borough Council,805011,Osborne Property Services Limited,J015,Place Management,Premises,"35,840.00",Apr-22
Slough Borough Council,805011,Osborne Property Services Limited,J015,Place Management,Premises,"46,791.62",Apr-22
Slough Borough Council,805011,Osborne Property Services Limited,J607,Place Management,Supplies and Services,"146,882.86",Apr-22
Slough Borough Council,805011,Osborne Property Services Limited,P413,Capital,Capital Charges,"9,879.91",Apr-22
Slough Borough Council,805011,Osborne Property Services Limited,P413,Capital,Capital Charges,"50,388.63",Apr-22
Slough Borough Council,805011,Osborne Property Services Limited,P415,Capital,Capital Charges,"27,210.95",Apr-22
Slough Borough Council,805011,Osborne Property Services Limited,P415,Capital,Capital Charges,"277,812.46",Apr-22
Slough Borough Council,805011,Osborne Property Services Limited,P415,Capital,Capital Charges,"9,738.45",Apr-22
Slough Borough Council,805011,Osborne Property Services Limited,P417,Capital,Capital Charges,"36,134.97",Apr-22
Slough Borough Council,805011,Osborne Property Services Limited,P421,Capital,Capital Charges,"78,464.35",Apr-22
Slough Borough Council,805011,Osborne Property Services Limited,P547,Capital,Capital Charges,"48,023.62",Apr-22
Slough Borough Council,805011,Osborne Property Services Limited,J606,Place Management,Supplies and Services,"244,921.66",Apr-22
Slough Borough Council,806996,OSG Architecture Limited,B086,Place Strategy & Infrastructure,Capital Charges,"4,000.00",Apr-22
Slough Borough Council,294,Oxford Computer Consultants Ltd,A03D,Adult Social Care Operations,Supplies and Services,"9,514.53",Apr-22
Slough Borough Council,294,Oxford Computer Consultants Ltd,A03D,Adult Social Care Operations,Supplies and Services,"12,547.83",Apr-22
Slough Borough Council,680,Oxford House Community Care,M44C,Adult Social Care Operations,Supplies and Services,"2,000.89",Apr-22
Slough Borough Council,680,Oxford House Community Care,M44C,Adult Social Care Operations,Supplies and Services,"2,252.80",Apr-22
Slough Borough Council,680,Oxford House Community Care,M44C,Adult Social Care Operations,Supplies and Services,"1,232.00",Apr-22
Slough Borough Council,680,Oxford House Community Care,M44C,Adult Social Care Operations,Supplies and Services,"2,069.23",Apr-22
Slough Borough Council,680,Oxford House Community Care,M44C,Adult Social Care Operations,Supplies and Services,505.12,Apr-22
Slough Borough Council,680,Oxford House Community Care,M44C,Adult Social Care Operations,Supplies and Services,"1,214.41",Apr-22
Slough Borough Council,680,Oxford House Community Care,M44C,Adult Social Care Operations,Supplies and Services,"1,636.18",Apr-22
Slough Borough Council,680,Oxford House Community Care,M44C,Adult Social Care Operations,Supplies and Services,"2,392.18",Apr-22
Slough Borough Council,680,Oxford House Community Care,M44C,Adult Social Care Operations,Supplies and Services,516.07,Apr-22
Slough Borough Council,680,Oxford House Community Care,M44C,Adult Social Care Operations,Supplies and Services,"1,073.60",Apr-22
Slough Borough Council,680,Oxford House Community Care,M44C,Adult Social Care Operations,Supplies and Services,862.40,Apr-22
Slough Borough Council,680,Oxford House Community Care,M44C,Adult Social Care Operations,Supplies and Services,"1,108.80",Apr-22
Slough Borough Council,680,Oxford House Community Care,M44C,Adult Social Care Operations,Supplies and Services,"1,253.12",Apr-22
Slough Borough Council,680,Oxford House Community Care,M44C,Adult Social Care Operations,Supplies and Services,580.80,Apr-22
Slough Borough Council,680,Oxford House Community Care,M44C,Adult Social Care Operations,Supplies and Services,615.13,Apr-22
Slough Borough Council,680,Oxford House Community Care,M44C,Adult Social Care Operations,Supplies and Services,"1,088.29",Apr-22
Slough Borough Council,680,Oxford House Community Care,M44D,Adult Social Care Operations,Supplies and Services,"1,126.40",Apr-22
Slough Borough Council,680,Oxford House Community Care,M44D,Adult Social Care Operations,Supplies and Services,616.00,Apr-22
Slough Borough Council,680,Oxford House Community Care,M44D,Adult Social Care Operations,Supplies and Services,704.00,Apr-22
Slough Borough Council,680,Oxford House Community Care,M44D,Adult Social Care Operations,Supplies and Services,616.00,Apr-22
Slough Borough Council,680,Oxford House Community Care,M48C,Adult Social Care Operations,Supplies and Services,985.60,Apr-22
Slough Borough Council,680,Oxford House Community Care,M48C,Adult Social Care Operations,Supplies and Services,600.25,Apr-22
Slough Borough Council,518,Oxford House Nursing Home,M15D,Adult Social Care Operations,Supplies and Services,"3,052.60",Apr-22
Slough Borough Council,518,Oxford House Nursing Home,M15D,Adult Social Care Operations,Supplies and Services,"3,052.60",Apr-22
Slough Borough Council,518,Oxford House Nursing Home,M15D,Adult Social Care Operations,Supplies and Services,"3,052.60",Apr-22
Slough Borough Council,518,Oxford House Nursing Home,M15D,Adult Social Care Operations,Supplies and Services,"3,052.60",Apr-22
Slough Borough Council,518,Oxford House Nursing Home,M18C,Adult Social Care Operations,Supplies and Services,"3,052.60",Apr-22
Slough Borough Council,518,Oxford House Nursing Home,M18C,Adult Social Care Operations,Supplies and Services,"3,052.60",Apr-22
Slough Borough Council,518,Oxford House Nursing Home,M18C,Adult Social Care Operations,Supplies and Services,"3,052.60",Apr-22
Slough Borough Council,518,Oxford House Nursing Home,M18C,Adult Social Care Operations,Supplies and Services,"3,052.60",Apr-22
Slough Borough Council,518,Oxford House Nursing Home,M18C,Adult Social Care Operations,Supplies and Services,"3,052.60",Apr-22
Slough Borough Council,518,Oxford House Nursing Home,M18C,Adult Social Care Operations,Supplies and Services,"3,052.60",Apr-22
Slough Borough Council,518,Oxford House Nursing Home,M18C,Adult Social Care Operations,Supplies and Services,"3,052.60",Apr-22
Slough Borough Council,518,Oxford House Nursing Home,M28C,Adult Social Care Operations,Supplies and Services,"3,052.60",Apr-22
Slough Borough Council,518,Oxford House Nursing Home,M28C,Adult Social Care Operations,Supplies and Services,"3,052.60",Apr-22
Slough Borough Council,3271,Partnership In Care Ltd,M27F,Adult Social Care Operations,Supplies and Services,"3,941.40",Apr-22
Slough Borough Council,2509,Parvaaz Project,M44E,Adult Social Care Operations,Supplies and Services,585.00,Apr-22
Slough Borough Council,2509,Parvaaz Project,M44E,Adult Social Care Operations,Supplies and Services,585.00,Apr-22
Slough Borough Council,2509,Parvaaz Project,M44E,Adult Social Care Operations,Supplies and Services,585.00,Apr-22
Slough Borough Council,2509,Parvaaz Project,M44E,Adult Social Care Operations,Supplies and Services,585.00,Apr-22
Slough Borough Council,2509,Parvaaz Project,M50E,Adult Social Care Operations,Supplies and Services,736.00,Apr-22
Slough Borough Council,2509,Parvaaz Project,M50E,Adult Social Care Operations,Supplies and Services,736.00,Apr-22
Slough Borough Council,2509,Parvaaz Project,M50E,Adult Social Care Operations,Supplies and Services,736.00,Apr-22
Slough Borough Council,2509,Parvaaz Project,M50E,Adult Social Care Operations,Supplies and Services,736.00,Apr-22
Slough Borough Council,2509,Parvaaz Project,B324,Finance,Government Grants,"1,754.67",Apr-22
Slough Borough Council,2509,Parvaaz Project,B324,Finance,Government Grants,"2,429.54",Apr-22
Slough Borough Council,1468,Patrol,D010,Place Strategy & Infrastructure,Supplies and Services,"1,363.50",Apr-22
Slough Borough Council,806879,Pearce Recycling Ltd,D342,Place Operations,Supplies and Services,901.80,Apr-22
Slough Borough Council,824,Penn Wood Primary and Nursery School,E450,Children & Families,Supplies and Services,"297,067.72",Apr-22
Slough Borough Council,1504,Permanent Futures Limited,F410,Children & Families,Agency Staff,"5,400.00",Apr-22
Slough Borough Council,1504,Permanent Futures Limited,F410,Children & Families,Agency Staff,"6,750.00",Apr-22
Slough Borough Council,1504,Permanent Futures Limited,F640,Children & Families,Agency Staff,"3,000.00",Apr-22
Slough Borough Council,1504,Permanent Futures Limited,F640,Children & Families,Agency Staff,"1,500.00",Apr-22
Slough Borough Council,1504,Permanent Futures Limited,F640,Children & Families,Agency Staff,"1,500.00",Apr-22
Slough Borough Council,807727,Phoenix Infant Academy c/o Thames Learning Trust,E620,Children & Families,Supplies and Services,"23,524.99",Apr-22
Slough Borough Council,803498,Phoenix Software,B282,Digital and Strategic IT,Supplies and Services,905.00,Apr-22
Slough Borough Council,803498,Phoenix Software,B282,Digital and Strategic IT,Supplies and Services,"102,208.46",Apr-22
Slough Borough Council,3359,Pippins School,E370,Children & Families,Supplies and Services,"6,356.56",Apr-22
Slough Borough Council,904,Pitney Bowes Finance Plc,K077,Business Services,Supplies and Services,"10,622.08",Apr-22
Slough Borough Council,904,Pitney Bowes Finance Plc,K077,Business Services,Supplies and Services,504.00,Apr-22
Slough Borough Council,807120,PJ Care Limited,M15D,Adult Social Care Operations,Supplies and Services,"9,514.50",Apr-22
Slough Borough Council,3644,Poppy Cottage,M42E,Adult Social Care Operations,Supplies and Services,"6,159.00",Apr-22
Slough Borough Council,806807,Poppy Radford,C322,Communities and Leisure,Supplies and Services,500.00,Apr-22
Slough Borough Council,805896,PPL PRS Ltd,F150,Early Years & Prevention,Supplies and Services,903.60,Apr-22
Slough Borough Council,2537,Pre School Stars,F909,Children & Families,Supplies and Services,"7,267.20",Apr-22
Slough Borough Council,807726,Precisely Europe Software and Data Ltd.,B660,Place Operations,Supplies and Services,"4,222.46",Apr-22
Slough Borough Council,807164,Premier Tail Lifts LTD,M50A,Major Infrastructure Projects,Transport,"1,160.87",Apr-22
Slough Borough Council,805398,PRIORITEYES LTD,A05C,Adult Social Care Commissioning,Supplies and Services,"6,180.00",Apr-22
Slough Borough Council,849,Priory Primary School,E380,Children & Families,Supplies and Services,"423,915.12",Apr-22
Slough Borough Council,807130,Prism Power Limited,B064,Business Services,Premises,"1,181.50",Apr-22
Slough Borough Council,805500,Privilege Care Ltd,B324,Finance,Supplies and Services,752.00,Apr-22
Slough Borough Council,808180,Proact,P084,Capital,Capital Charges,"2,200.00",Apr-22
Slough Borough Council,1138,Qed Slough Ltd,F868,Children & Families,Supplies and Services,"577,987.91",Apr-22
Slough Borough Council,1138,Qed Slough Ltd,F868,Children & Families,Supplies and Services,"4,332.48",Apr-22
Slough Borough Council,1138,Qed Slough Ltd,F868,Children & Families,Supplies and Services,"9,414.48",Apr-22
Slough Borough Council,805746,Qfree (Bristol) UK Ltd,D500,Major Infrastructure Projects,Premises,"1,529.17",Apr-22
Slough Borough Council,2376,Quality Care Homes Uk Ltd,M26E,Adult Social Care Operations,Supplies and Services,"1,800.00",Apr-22
Slough Borough Council,2376,Quality Care Homes Uk Ltd,M26E,Adult Social Care Operations,Supplies and Services,"1,800.00",Apr-22
Slough Borough Council,2376,Quality Care Homes Uk Ltd,M26E,Adult Social Care Operations,Supplies and Services,"1,800.00",Apr-22
Slough Borough Council,2376,Quality Care Homes Uk Ltd,M26E,Adult Social Care Operations,Supplies and Services,"1,800.00",Apr-22
Slough Borough Council,808200,Quest Recovery Services Ltd,M44C,Adult Social Care Operations,Supplies and Services,840.00,Apr-22
Slough Borough Council,808200,Quest Recovery Services Ltd,M44C,Adult Social Care Operations,Supplies and Services,952.00,Apr-22
Slough Borough Council,808200,Quest Recovery Services Ltd,M44C,Adult Social Care Operations,Supplies and Services,514.40,Apr-22
Slough Borough Council,808200,Quest Recovery Services Ltd,M44C,Adult Social Care Operations,Supplies and Services,512.00,Apr-22
Slough Borough Council,808200,Quest Recovery Services Ltd,M44C,Adult Social Care Operations,Supplies and Services,832.00,Apr-22
Slough Borough Council,808200,Quest Recovery Services Ltd,M44C,Adult Social Care Operations,Supplies and Services,903.00,Apr-22
Slough Borough Council,808200,Quest Recovery Services Ltd,M44C,Adult Social Care Operations,Supplies and Services,"1,456.00",Apr-22
Slough Borough Council,808200,Quest Recovery Services Ltd,M44C,Adult Social Care Operations,Supplies and Services,"2,016.00",Apr-22
Slough Borough Council,808200,Quest Recovery Services Ltd,M44C,Adult Social Care Operations,Supplies and Services,"2,016.00",Apr-22
Slough Borough Council,808200,Quest Recovery Services Ltd,M44C,Adult Social Care Operations,Supplies and Services,"2,016.00",Apr-22
Slough Borough Council,808200,Quest Recovery Services Ltd,M44E,Adult Social Care Operations,Supplies and Services,"1,792.00",Apr-22
Slough Borough Council,808200,Quest Recovery Services Ltd,M44E,Adult Social Care Operations,Supplies and Services,"1,792.00",Apr-22
Slough Borough Council,808200,Quest Recovery Services Ltd,M44E,Adult Social Care Operations,Supplies and Services,"1,792.00",Apr-22
Slough Borough Council,808200,Quest Recovery Services Ltd,M45C,Adult Social Care Operations,Supplies and Services,680.00,Apr-22
Slough Borough Council,2685,R.E.A.C.H,B324,Finance,Supplies and Services,601.60,Apr-22
Slough Borough Council,2685,R.E.A.C.H,B324,Finance,Supplies and Services,651.73,Apr-22
Slough Borough Council,2685,R.E.A.C.H,B324,Finance,Supplies and Services,952.53,Apr-22
Slough Borough Council,2685,R.E.A.C.H,B324,Finance,Government Grants,832.99,Apr-22
Slough Borough Council,2685,R.E.A.C.H,B324,Finance,Government Grants,902.40,Apr-22
Slough Borough Council,2685,R.E.A.C.H,B324,Finance,Government Grants,"1,318.89",Apr-22
Slough Borough Council,690,Reading Borough Council,F500,Education & Inclusion,Supplies and Services,"31,964.25",Apr-22
Slough Borough Council,690,Reading Borough Council,F500,Education & Inclusion,Supplies and Services,"26,097.00",Apr-22
Slough Borough Council,805444,Reading Transport Ltd,D512,Major Infrastructure Projects,Supplies and Services,"7,919.67",Apr-22
Slough Borough Council,806766,Red Brick Care Ltd,M44C,Adult Social Care Operations,Supplies and Services,"1,071.00",Apr-22
Slough Borough Council,806766,Red Brick Care Ltd,M44C,Adult Social Care Operations,Supplies and Services,"2,057.00",Apr-22
Slough Borough Council,804359,Redacted,F123,Schools,Supplies and Services,"1,207.26",Apr-22
Slough Borough Council,807192,Redacted,F123,Schools,Supplies and Services,548.10,Apr-22
Slough Borough Council,806541,Redacted,F909,Children & Families,Supplies and Services,"1,320.00",Apr-22
Slough Borough Council,806541,Redacted,F909,Children & Families,Supplies and Services,"20,229.02",Apr-22
Slough Borough Council,3553,Redacted,F909,Children & Families,Supplies and Services,736.35,Apr-22
Slough Borough Council,3903,Redacted,F909,Children & Families,Supplies and Services,"1,596.95",Apr-22
Slough Borough Council,805403,Redacted,F909,Children & Families,Supplies and Services,"1,101.75",Apr-22
Slough Borough Council,805307,Redacted,F909,Children & Families,Supplies and Services,739.64,Apr-22
Slough Borough Council,3209,Redacted,F909,Children & Families,Supplies and Services,918.12,Apr-22
Slough Borough Council,804932,Redacted,F909,Children & Families,Supplies and Services,830.36,Apr-22
Slough Borough Council,808143,Redacted,F909,Children & Families,Supplies and Services,546.92,Apr-22
Slough Borough Council,804705,Redacted,F909,Children & Families,Supplies and Services,661.05,Apr-22
Slough Borough Council,808289,Redacted,F909,Children & Families,Supplies and Services,"1,258.83",Apr-22
Slough Borough Council,807233,Redacted,F909,Children & Families,Supplies and Services,550.88,Apr-22
Slough Borough Council,803824,Redacted,F909,Children & Families,Supplies and Services,"1,565.07",Apr-22
Slough Borough Council,807475,Redacted,F909,Children & Families,Supplies and Services,"4,983.50",Apr-22
Slough Borough Council,3251,Redacted,F909,Children & Families,Supplies and Services,536.75,Apr-22
Slough Borough Council,803853,Redacted,F909,Children & Families,Supplies and Services,536.75,Apr-22
Slough Borough Council,807836,Redacted,F909,Children & Families,Supplies and Services,"1,438.17",Apr-22
Slough Borough Council,803884,Redacted,F909,Children & Families,Supplies and Services,"1,053.27",Apr-22
Slough Borough Council,3917,Redacted,F909,Children & Families,Supplies and Services,550.88,Apr-22
Slough Borough Council,803819,Redacted,F909,Children & Families,Supplies and Services,656.10,Apr-22
Slough Borough Council,805806,Redacted,F909,Children & Families,Supplies and Services,987.62,Apr-22
Slough Borough Council,806854,Reed Specialist Recruitment,B033,People,Salaries and Wages,767.75,Apr-22
Slough Borough Council,806854,Reed Specialist Recruitment,B033,People,Salaries and Wages,757.38,Apr-22
Slough Borough Council,806854,Reed Specialist Recruitment,B033,People,Salaries and Wages,629.35,Apr-22
Slough Borough Council,808302,Reliant Care Limited,M44C,Adult Social Care Operations,Supplies and Services,"23,384.94",Apr-22
Slough Borough Council,808302,Reliant Care Limited,M44C,Adult Social Care Operations,Supplies and Services,"1,310.36",Apr-22
Slough Borough Council,807562,Renovo Farnborough Limited,M25D,Adult Social Care Operations,Supplies and Services,"8,227.97",Apr-22
Slough Borough Council,781,Resource Productions CIC,F210,Community,TP-Other Bodies,"5,533.33",Apr-22
Slough Borough Council,3486,Response Organisation,M42F,Adult Social Care Operations,Supplies and Services,"1,274.28",Apr-22
Slough Borough Council,3486,Response Organisation,M42F,Adult Social Care Operations,Supplies and Services,"1,274.28",Apr-22
Slough Borough Council,3486,Response Organisation,M42F,Adult Social Care Operations,Supplies and Services,518.84,Apr-22
Slough Borough Council,803665,Riskmonitor Ltd,J607,Place Management,Supplies and Services,"20,000.00",Apr-22
Slough Borough Council,1553,Robyn Baker,C322,Communities and Leisure,Supplies and Services,978.75,Apr-22
Slough Borough Council,1519,Royal Holloway & Bedford New Collegebnc,B409,People,Supplies and Services,870.00,Apr-22
Slough Borough Council,356,Royal Mail Group Ltd,B252,Business Services,Supplies and Services,510.34,Apr-22
Slough Borough Council,804860,Royal Masonic Benevolent Institution,M18C,Adult Social Care Operations,Supplies and Services,"4,071.43",Apr-22
Slough Borough Council,842,Ryvers Primary School,E620,Children & Families,Supplies and Services,"27,876.66",Apr-22
Slough Borough Council,803349,SafeSmart Ltd,B349,People,Supplies and Services,"3,412.50",Apr-22
Slough Borough Council,808277,Sally Peerless,C322,Communities and Leisure,Supplies and Services,658.00,Apr-22
Slough Borough Council,804350,Sandra�s Childcare,F909,Children & Families,Supplies and Services,"1,080.28",Apr-22
Slough Borough Council,925,Sara Wood,D320,Regulatory Services,Supplies and Services,975.00,Apr-22
Slough Borough Council,925,Sara Wood,D320,Regulatory Services,Supplies and Services,675.00,Apr-22
Slough Borough Council,925,Sara Wood,D320,Regulatory Services,Supplies and Services,575.00,Apr-22
Slough Borough Council,925,Sara Wood,D320,Regulatory Services,Supplies and Services,"2,944.00",Apr-22
Slough Borough Council,3169,Seeability,M26E,Adult Social Care Operations,Supplies and Services,"11,377.00",Apr-22
Slough Borough Council,2969,Segro Administration Ltd,B082,Place Strategy,Supplies and Services,"62,375.00",Apr-22
Slough Borough Council,808140,Service to the Aged Ltd,M15D,Adult Social Care Operations,Supplies and Services,"3,764.33",Apr-22
Slough Borough Council,1853,Shamita Ray,C322,Communities and Leisure,Supplies and Services,810.00,Apr-22
Slough Borough Council,805203,Shorts Agricultural Services Ltd,D342,Place Operations,Supplies and Services,"10,953.59",Apr-22
Slough Borough Council,805203,Shorts Agricultural Services Ltd,D342,Place Operations,Supplies and Services,"11,344.04",Apr-22
Slough Borough Council,807254,SKILLS TRAINING AND ASSESSMENT LIMITED,F210,Community,Supplies and Services,"9,732.00",Apr-22
Slough Borough Council,3333,Slk Services,F123,Schools,Supplies and Services,"9,721.00",Apr-22
Slough Borough Council,3333,Slk Services,F123,Schools,Supplies and Services,"4,311.00",Apr-22
Slough Borough Council,472,Slough & Eton C.E.School,B297,Finance & Commercial,Government Grants,"12,560.00",Apr-22
Slough Borough Council,1459,Slough And Eton C E School,E610,Children & Families,Supplies and Services,"33,041.67",Apr-22
Slough Borough Council,807834,Slough Children First,M99C,"Children, Learning and Skills",Supplies and Services,"2,666,500.00",Apr-22
Slough Borough Council,1913,Slough Crossroads Caring For Carers,B324,Finance,Supplies and Services,802.13,Apr-22
Slough Borough Council,1913,Slough Crossroads Caring For Carers,M44C,Adult Social Care Operations,Supplies and Services,875.03,Apr-22
Slough Borough Council,1913,Slough Crossroads Caring For Carers,M44D,Adult Social Care Operations,Supplies and Services,516.24,Apr-22
Slough Borough Council,1913,Slough Crossroads Caring For Carers,M44E,Adult Social Care Operations,Supplies and Services,814.04,Apr-22
Slough Borough Council,1913,Slough Crossroads Caring For Carers,M44E,Adult Social Care Operations,Supplies and Services,577.85,Apr-22
Slough Borough Council,1913,Slough Crossroads Caring For Carers,M44E,Adult Social Care Operations,Supplies and Services,990.60,Apr-22
Slough Borough Council,1913,Slough Crossroads Caring For Carers,B324,Finance,Government Grants,"1,110.65",Apr-22
Slough Borough Council,1119,Slough Cvs,A02C,Adult Social Care Commissioning,Supplies and Services,"118,312.74",Apr-22
Slough Borough Council,3011,Slough Urban Renewal Community Projects LLP,P575,Capital,Capital Charges,"100,627.41",Apr-22
Slough Borough Council,382,Softcat Plc,B282,Digital and Strategic IT,Supplies and Services,"7,017.96",Apr-22
Slough Borough Council,114,Solutions 4 Health Ltd,A01P,Public Health,Supplies and Services,"87,353.50",Apr-22
Slough Borough Council,114,Solutions 4 Health Ltd,A01P,Public Health,Supplies and Services,"229,057.81",Apr-22
Slough Borough Council,1598,Sorbon Estates Limited,H205,Housing (People) Services,Premises,"6,040.83",Apr-22
Slough Borough Council,79,South East Employers,B409,People,Indirect Employee Expenses,"6,175.00",Apr-22
Slough Borough Council,804781,Sports and Leisure Management Ltd,C322,Communities and Leisure,Supplies and Services,758.33,Apr-22
Slough Borough Council,804781,Sports and Leisure Management Ltd,B310,Finance,Supplies and Services,"34,657.00",Apr-22
Slough Borough Council,1875,Ss & Kk. Hothi,H205,Housing (People) Services,Premises,"15,816.66",Apr-22
Slough Borough Council,1875,Ss & Kk. Hothi,H205,Housing (People) Services,Premises,"11,771.25",Apr-22
Slough Borough Council,803165,St Anthony�s Catholic Primary School & Nursery,E620,Children & Families,Supplies and Services,"23,134.98",Apr-22
Slough Borough Council,2918,St Bernard�S Rc Preparatory School,F909,Children & Families,Supplies and Services,"14,635.90",Apr-22
Slough Borough Council,3383,St Bernards Catholic Grammar School,E550,Children & Families,Supplies and Services,"562,533.82",Apr-22
Slough Borough Council,808250,St Elizabeth�s Centre,F462,Children & Families,Supplies and Services,"18,221.86",Apr-22
Slough Borough Council,3547,St Ethelberts School,E620,Children & Families,Supplies and Services,"21,931.66",Apr-22
Slough Borough Council,1378,St Josephs Catholic High School,E610,Children & Families,Supplies and Services,"15,208.33",Apr-22
Slough Borough Council,468,Stannah Lift Services Ltd,P006,Capital,Capital Charges,"2,661.00",Apr-22
Slough Borough Council,468,Stannah Lift Services Ltd,P006,Capital,Capital Charges,"2,773.00",Apr-22
Slough Borough Council,468,Stannah Lift Services Ltd,P006,Capital,Capital Charges,"5,515.00",Apr-22
Slough Borough Council,468,Stannah Lift Services Ltd,P006,Capital,Capital Charges,"2,756.00",Apr-22
Slough Borough Council,808142,Step Together Ltd,M28E,Adult Social Care Operations,Supplies and Services,800.00,Apr-22
Slough Borough Council,806115,Stepping Stones,F909,Children & Families,Supplies and Services,565.01,Apr-22
Slough Borough Council,807426,Sunfield Children�s Home Ltd,F462,Children & Families,Supplies and Services,"37,000.00",Apr-22
Slough Borough Council,807426,Sunfield Children�s Home Ltd,F462,Children & Families,Supplies and Services,"6,666.67",Apr-22
Slough Borough Council,807426,Sunfield Children�s Home Ltd,F462,Children & Families,Supplies and Services,"8,333.33",Apr-22
Slough Borough Council,2688,Sunnyside Nursing Home,M15D,Adult Social Care Operations,Supplies and Services,"2,991.76",Apr-22
Slough Borough Council,807889,Sunrise Transport Ltd,F123,Schools,Supplies and Services,"2,635.80",Apr-22
Slough Borough Council,807889,Sunrise Transport Ltd,F123,Schools,Supplies and Services,"5,387.50",Apr-22
Slough Borough Council,293,Surecare Slough,B324,Finance,Supplies and Services,"1,804.80",Apr-22
Slough Borough Council,293,Surecare Slough,A07R,Adult Social Care Operations,Supplies and Services,"2,674.56",Apr-22
Slough Borough Council,293,Surecare Slough,A07R,Adult Social Care Operations,Supplies and Services,599.10,Apr-22
Slough Borough Council,293,Surecare Slough,M44C,Adult Social Care Operations,Supplies and Services,"2,674.00",Apr-22
Slough Borough Council,293,Surecare Slough,M44C,Adult Social Care Operations,Supplies and Services,"2,406.60",Apr-22
Slough Borough Council,293,Surecare Slough,M44C,Adult Social Care Operations,Supplies and Services,534.80,Apr-22
Slough Borough Council,293,Surecare Slough,M44C,Adult Social Care Operations,Supplies and Services,725.93,Apr-22
Slough Borough Council,293,Surecare Slough,M44C,Adult Social Care Operations,Supplies and Services,"2,502.10",Apr-22
Slough Borough Council,293,Surecare Slough,M44C,Adult Social Care Operations,Supplies and Services,"1,203.30",Apr-22
Slough Borough Council,293,Surecare Slough,M44C,Adult Social Care Operations,Supplies and Services,"1,184.20",Apr-22
Slough Borough Council,293,Surecare Slough,M44C,Adult Social Care Operations,Supplies and Services,"2,406.60",Apr-22
Slough Borough Council,293,Surecare Slough,M44C,Adult Social Care Operations,Supplies and Services,"2,941.68",Apr-22
Slough Borough Council,293,Surecare Slough,M44C,Adult Social Care Operations,Supplies and Services,"2,406.60",Apr-22
Slough Borough Council,293,Surecare Slough,M44C,Adult Social Care Operations,Supplies and Services,"2,406.60",Apr-22
Slough Borough Council,293,Surecare Slough,M44C,Adult Social Care Operations,Supplies and Services,"2,674.00",Apr-22
Slough Borough Council,293,Surecare Slough,M44C,Adult Social Care Operations,Supplies and Services,935.90,Apr-22
Slough Borough Council,293,Surecare Slough,M44C,Adult Social Care Operations,Supplies and Services,534.80,Apr-22
Slough Borough Council,293,Surecare Slough,M44C,Adult Social Care Operations,Supplies and Services,"2,483.00",Apr-22
Slough Borough Council,293,Surecare Slough,M44C,Adult Social Care Operations,Supplies and Services,802.20,Apr-22
Slough Borough Council,293,Surecare Slough,M44C,Adult Social Care Operations,Supplies and Services,"2,941.40",Apr-22
Slough Borough Council,293,Surecare Slough,M44C,Adult Social Care Operations,Supplies and Services,"1,337.00",Apr-22
Slough Borough Council,293,Surecare Slough,M44C,Adult Social Care Operations,Supplies and Services,"1,259.98",Apr-22
Slough Borough Council,293,Surecare Slough,M44C,Adult Social Care Operations,Supplies and Services,"2,405.29",Apr-22
Slough Borough Council,293,Surecare Slough,M44C,Adult Social Care Operations,Supplies and Services,"1,201.84",Apr-22
Slough Borough Council,293,Surecare Slough,M44C,Adult Social Care Operations,Supplies and Services,"1,145.61",Apr-22
Slough Borough Council,293,Surecare Slough,M44C,Adult Social Care Operations,Supplies and Services,667.99,Apr-22
Slough Borough Council,293,Surecare Slough,M44C,Adult Social Care Operations,Supplies and Services,"2,396.70",Apr-22
Slough Borough Council,293,Surecare Slough,M44C,Adult Social Care Operations,Supplies and Services,800.61,Apr-22
Slough Borough Council,293,Surecare Slough,M44C,Adult Social Care Operations,Supplies and Services,936.04,Apr-22
Slough Borough Council,293,Surecare Slough,M44C,Adult Social Care Operations,Supplies and Services,"2,401.07",Apr-22
Slough Borough Council,293,Surecare Slough,M44C,Adult Social Care Operations,Supplies and Services,934.45,Apr-22
Slough Borough Council,293,Surecare Slough,M44D,Adult Social Care Operations,Supplies and Services,"2,406.60",Apr-22
Slough Borough Council,293,Surecare Slough,M44D,Adult Social Care Operations,Supplies and Services,"1,200.75",Apr-22
Slough Borough Council,293,Surecare Slough,M44D,Adult Social Care Operations,Supplies and Services,"1,337.00",Apr-22
Slough Borough Council,293,Surecare Slough,M44D,Adult Social Care Operations,Supplies and Services,"2,139.20",Apr-22
Slough Borough Council,293,Surecare Slough,M44D,Adult Social Care Operations,Supplies and Services,"3,629.00",Apr-22
Slough Borough Council,293,Surecare Slough,M44D,Adult Social Care Operations,Supplies and Services,"2,406.60",Apr-22
Slough Borough Council,293,Surecare Slough,M44D,Adult Social Care Operations,Supplies and Services,"2,102.22",Apr-22
Slough Borough Council,293,Surecare Slough,M44D,Adult Social Care Operations,Supplies and Services,"1,852.98",Apr-22
Slough Borough Council,293,Surecare Slough,M44E,Adult Social Care Operations,Supplies and Services,802.20,Apr-22
Slough Borough Council,293,Surecare Slough,M44E,Adult Social Care Operations,Supplies and Services,687.60,Apr-22
Slough Borough Council,293,Surecare Slough,M45C,Adult Social Care Operations,Supplies and Services,668.64,Apr-22
Slough Borough Council,293,Surecare Slough,M47D,Adult Social Care Operations,Supplies and Services,"2,406.60",Apr-22
Slough Borough Council,293,Surecare Slough,M48C,Adult Social Care Operations,Supplies and Services,"2,406.60",Apr-22
Slough Borough Council,293,Surecare Slough,M48C,Adult Social Care Operations,Supplies and Services,"2,898.33",Apr-22
Slough Borough Council,293,Surecare Slough,M48C,Adult Social Care Operations,Supplies and Services,"1,375.48",Apr-22
Slough Borough Council,293,Surecare Slough,M48C,Adult Social Care Operations,Supplies and Services,"2,674.00",Apr-22
Slough Borough Council,293,Surecare Slough,B324,Finance,Government Grants,"2,498.96",Apr-22
Slough Borough Council,715,Surrey County Council,F123,Schools,Supplies and Services,"5,372.00",Apr-22
Slough Borough Council,805484,Synergy Asset Services Ltd,D342,Place Operations,Supplies and Services,"1,579.00",Apr-22
Slough Borough Council,807134,TECHNIMOVE LTD,P084,Capital,Capital Charges,"1,262.00",Apr-22
Slough Borough Council,3369,Teeny Boppers Montessori School,F909,Children & Families,Supplies and Services,"8,354.28",Apr-22
Slough Borough Council,807878,Thames Valley Buses,F123,Schools,Supplies and Services,"1,009.80",Apr-22
Slough Borough Council,807878,Thames Valley Buses,F123,Schools,Supplies and Services,656.37,Apr-22
Slough Borough Council,807878,Thames Valley Buses,F123,Schools,Supplies and Services,757.35,Apr-22
Slough Borough Council,807878,Thames Valley Buses,F123,Schools,Supplies and Services,757.35,Apr-22
Slough Borough Council,807878,Thames Valley Buses,F123,Schools,Supplies and Services,"1,009.80",Apr-22
Slough Borough Council,807878,Thames Valley Buses,F123,Schools,Supplies and Services,"1,464.21",Apr-22
Slough Borough Council,807878,Thames Valley Buses,F123,Schools,Supplies and Services,757.35,Apr-22
Slough Borough Council,807878,Thames Valley Buses,F123,Schools,Supplies and Services,908.82,Apr-22
Slough Borough Council,807878,Thames Valley Buses,F123,Schools,Supplies and Services,959.31,Apr-22
Slough Borough Council,807878,Thames Valley Buses,D512,Major Infrastructure Projects,Supplies and Services,"1,672.88",Apr-22
Slough Borough Council,807878,Thames Valley Buses,D512,Major Infrastructure Projects,Supplies and Services,"16,670.21",Apr-22
Slough Borough Council,807878,Thames Valley Buses,D512,Major Infrastructure Projects,Supplies and Services,"1,190.73",Apr-22
Slough Borough Council,803712,Thames Valley Transport Services LTD,F123,Schools,Supplies and Services,"16,627.50",Apr-22
Slough Borough Council,803712,Thames Valley Transport Services LTD,F123,Schools,Supplies and Services,"98,870.90",Apr-22
Slough Borough Council,653,The Godolphin Junior Academy,E620,Children & Families,Supplies and Services,"11,249.99",Apr-22
Slough Borough Council,1385,The Langley Academy,E610,Children & Families,Supplies and Services,"15,458.32",Apr-22
Slough Borough Council,803300,The Langley Academy Primary,E610,Children & Families,Supplies and Services,"19,554.99",Apr-22
Slough Borough Council,806847,The Langley Heritage Primary Academy,E620,Children & Families,Supplies and Services,"23,266.67",Apr-22
Slough Borough Council,805400,The Leading Care Company,B324,Finance,Supplies and Services,"3,108.26",Apr-22
Slough Borough Council,805400,The Leading Care Company,M41D,Adult Social Care Operations,Supplies and Services,811.83,Apr-22
Slough Borough Council,805400,The Leading Care Company,M44C,Adult Social Care Operations,Supplies and Services,992.71,Apr-22
Slough Borough Council,805400,The Leading Care Company,M44C,Adult Social Care Operations,Supplies and Services,723.34,Apr-22
Slough Borough Council,805400,The Leading Care Company,M44C,Adult Social Care Operations,Supplies and Services,"1,828.39",Apr-22
Slough Borough Council,805400,The Leading Care Company,M44C,Adult Social Care Operations,Supplies and Services,994.62,Apr-22
Slough Borough Council,805400,The Leading Care Company,M44C,Adult Social Care Operations,Supplies and Services,641.03,Apr-22
Slough Borough Council,805400,The Leading Care Company,M44C,Adult Social Care Operations,Supplies and Services,854.63,Apr-22
Slough Borough Council,805400,The Leading Care Company,M44C,Adult Social Care Operations,Supplies and Services,867.98,Apr-22
Slough Borough Council,805400,The Leading Care Company,M44C,Adult Social Care Operations,Supplies and Services,644.60,Apr-22
Slough Borough Council,805400,The Leading Care Company,M44C,Adult Social Care Operations,Supplies and Services,649.92,Apr-22
Slough Borough Council,805400,The Leading Care Company,M44C,Adult Social Care Operations,Supplies and Services,812.12,Apr-22
Slough Borough Council,805400,The Leading Care Company,M44C,Adult Social Care Operations,Supplies and Services,"1,060.69",Apr-22
Slough Borough Council,805400,The Leading Care Company,M44C,Adult Social Care Operations,Supplies and Services,"1,831.35",Apr-22
Slough Borough Council,805400,The Leading Care Company,M44C,Adult Social Care Operations,Supplies and Services,863.38,Apr-22
Slough Borough Council,805400,The Leading Care Company,M44C,Adult Social Care Operations,Supplies and Services,840.36,Apr-22
Slough Borough Council,805400,The Leading Care Company,M44C,Adult Social Care Operations,Supplies and Services,"1,168.58",Apr-22
Slough Borough Council,805400,The Leading Care Company,M44C,Adult Social Care Operations,Supplies and Services,663.61,Apr-22
Slough Borough Council,805400,The Leading Care Company,M44C,Adult Social Care Operations,Supplies and Services,"2,564.22",Apr-22
Slough Borough Council,805400,The Leading Care Company,M44C,Adult Social Care Operations,Supplies and Services,818.96,Apr-22
Slough Borough Council,805400,The Leading Care Company,M44C,Adult Social Care Operations,Supplies and Services,"1,155.89",Apr-22
Slough Borough Council,805400,The Leading Care Company,M44C,Adult Social Care Operations,Supplies and Services,"1,210.30",Apr-22
Slough Borough Council,805400,The Leading Care Company,M44C,Adult Social Care Operations,Supplies and Services,898.73,Apr-22
Slough Borough Council,805400,The Leading Care Company,M44C,Adult Social Care Operations,Supplies and Services,781.16,Apr-22
Slough Borough Council,805400,The Leading Care Company,M44C,Adult Social Care Operations,Supplies and Services,"1,810.55",Apr-22
Slough Borough Council,805400,The Leading Care Company,M44D,Adult Social Care Operations,Supplies and Services,"1,078.48",Apr-22
Slough Borough Council,805400,The Leading Care Company,M44D,Adult Social Care Operations,Supplies and Services,"3,800.16",Apr-22
Slough Borough Council,805400,The Leading Care Company,M44D,Adult Social Care Operations,Supplies and Services,981.54,Apr-22
Slough Borough Council,805400,The Leading Care Company,M44D,Adult Social Care Operations,Supplies and Services,"3,800.16",Apr-22
Slough Borough Council,805400,The Leading Care Company,M44E,Adult Social Care Operations,Supplies and Services,"5,492.96",Apr-22
Slough Borough Council,805400,The Leading Care Company,M44E,Adult Social Care Operations,Supplies and Services,"3,559.64",Apr-22
Slough Borough Council,805400,The Leading Care Company,M44E,Adult Social Care Operations,Supplies and Services,"1,852.04",Apr-22
Slough Borough Council,805400,The Leading Care Company,M44E,Adult Social Care Operations,Supplies and Services,"5,656.57",Apr-22
Slough Borough Council,805400,The Leading Care Company,M44E,Adult Social Care Operations,Supplies and Services,"1,366.20",Apr-22
Slough Borough Council,805400,The Leading Care Company,M44E,Adult Social Care Operations,Supplies and Services,"2,415.47",Apr-22
Slough Borough Council,805400,The Leading Care Company,M44E,Adult Social Care Operations,Supplies and Services,"5,513.76",Apr-22
Slough Borough Council,805400,The Leading Care Company,M48C,Adult Social Care Operations,Supplies and Services,"3,800.16",Apr-22
Slough Borough Council,805400,The Leading Care Company,B324,Finance,Government Grants,"4,303.76",Apr-22
Slough Borough Council,3116,The Oratory Montessori Day Nursery,F909,Children & Families,Supplies and Services,"13,699.58",Apr-22
Slough Borough Council,803338,The Owl Centre,F417,Education & Inclusion,Supplies and Services,945.60,Apr-22
Slough Borough Council,803338,The Owl Centre,F417,Education & Inclusion,Supplies and Services,930.40,Apr-22
Slough Borough Council,803338,The Owl Centre,F417,Education & Inclusion,Supplies and Services,"1,460.80",Apr-22
Slough Borough Council,807439,The Pines,M26E,Adult Social Care Operations,Supplies and Services,"4,492.90",Apr-22
Slough Borough Council,807439,The Pines,M26E,Adult Social Care Operations,Supplies and Services,"1,123.20",Apr-22
Slough Borough Council,2898,The Regard Partnership Ltd,M26E,Adult Social Care Operations,Supplies and Services,"5,910.73",Apr-22
Slough Borough Council,2898,The Regard Partnership Ltd,M26E,Adult Social Care Operations,Supplies and Services,"6,998.49",Apr-22
Slough Borough Council,2898,The Regard Partnership Ltd,M42E,Adult Social Care Operations,Supplies and Services,"6,559.16",Apr-22
Slough Borough Council,2898,The Regard Partnership Ltd,M42E,Adult Social Care Operations,Supplies and Services,"6,310.29",Apr-22
Slough Borough Council,2898,The Regard Partnership Ltd,M42E,Adult Social Care Operations,Supplies and Services,"4,871.36",Apr-22
Slough Borough Council,2898,The Regard Partnership Ltd,M42E,Adult Social Care Operations,Supplies and Services,"5,180.49",Apr-22
Slough Borough Council,2898,The Regard Partnership Ltd,M42E,Adult Social Care Operations,Supplies and Services,"4,963.89",Apr-22
Slough Borough Council,2898,The Regard Partnership Ltd,M42E,Adult Social Care Operations,Supplies and Services,"6,525.94",Apr-22
Slough Borough Council,2898,The Regard Partnership Ltd,M42E,Adult Social Care Operations,Supplies and Services,"4,846.20",Apr-22
Slough Borough Council,2898,The Regard Partnership Ltd,M42E,Adult Social Care Operations,Supplies and Services,"6,347.57",Apr-22
Slough Borough Council,2898,The Regard Partnership Ltd,M44D,Adult Social Care Operations,Supplies and Services,"4,373.36",Apr-22
Slough Borough Council,2898,The Regard Partnership Ltd,M44E,Adult Social Care Operations,Supplies and Services,"5,414.23",Apr-22
Slough Borough Council,807988,The Sports Collective,F382,Children & Families,Supplies and Services,"4,500.00",Apr-22
Slough Borough Council,821,The Westgate School,E610,Children & Families,Supplies and Services,"148,909.00",Apr-22
Slough Borough Council,807030,Thrive365 Ltd,F210,Community,TP-Other Bodies,"2,400.00",Apr-22
Slough Borough Council,805915,Time 4 U Limited,M44F,Adult Social Care Operations,Supplies and Services,"2,989.33",Apr-22
Slough Borough Council,805915,Time 4 U Limited,M44F,Adult Social Care Operations,Supplies and Services,"2,989.33",Apr-22
Slough Borough Council,805915,Time 4 U Limited,M44F,Adult Social Care Operations,Supplies and Services,"2,892.85",Apr-22
Slough Borough Council,805915,Time 4 U Limited,M44F,Adult Social Care Operations,Supplies and Services,"2,989.33",Apr-22
Slough Borough Council,805915,Time 4 U Limited,M44F,Adult Social Care Operations,Supplies and Services,"2,892.86",Apr-22
Slough Borough Council,805915,Time 4 U Limited,M44F,Adult Social Care Operations,Supplies and Services,"2,989.33",Apr-22
Slough Borough Council,805915,Time 4 U Limited,M44F,Adult Social Care Operations,Supplies and Services,"2,989.34",Apr-22
Slough Borough Council,805915,Time 4 U Limited,M44F,Adult Social Care Operations,Supplies and Services,"2,892.90",Apr-22
Slough Borough Council,805915,Time 4 U Limited,M44F,Adult Social Care Operations,Supplies and Services,"2,700.05",Apr-22
Slough Borough Council,806360,Tiny Turtles Daycare Nursery Ltd,F909,Children & Families,Supplies and Services,960.00,Apr-22
Slough Borough Council,806360,Tiny Turtles Daycare Nursery Ltd,F909,Children & Families,Supplies and Services,"14,977.65",Apr-22
Slough Borough Council,803194,TMP Worldwide,B348,People,Indirect Employee Expenses,"2,841.00",Apr-22
Slough Borough Council,803194,TMP Worldwide,B348,People,Indirect Employee Expenses,"2,744.75",Apr-22
Slough Borough Council,803194,TMP Worldwide,B348,People,Indirect Employee Expenses,"1,345.00",Apr-22
Slough Borough Council,803194,TMP Worldwide,B348,People,Indirect Employee Expenses,675.00,Apr-22
Slough Borough Council,803194,TMP Worldwide,B348,People,Indirect Employee Expenses,"2,237.85",Apr-22
Slough Borough Council,803194,TMP Worldwide,B348,People,Indirect Employee Expenses,"1,828.75",Apr-22
Slough Borough Council,171,Toad Hall Nursery,F909,Children & Families,Supplies and Services,"23,509.31",Apr-22
Slough Borough Council,2203,Toby Miller,C322,Communities and Leisure,Supplies and Services,"2,993.50",Apr-22
Slough Borough Council,2203,Toby Miller,C322,Communities and Leisure,Supplies and Services,"1,278.00",Apr-22
Slough Borough Council,1782,Top Mill Ltd,H205,Housing (People) Services,Supplies and Services,"1,120.00",Apr-22
Slough Borough Council,1782,Top Mill Ltd,H205,Housing (People) Services,Supplies and Services,"8,400.00",Apr-22
Slough Borough Council,1782,Top Mill Ltd,H205,Housing (People) Services,Supplies and Services,840.00,Apr-22
Slough Borough Council,1782,Top Mill Ltd,H205,Housing (People) Services,Supplies and Services,840.00,Apr-22
Slough Borough Council,1782,Top Mill Ltd,H205,Housing (People) Services,Supplies and Services,560.00,Apr-22
Slough Borough Council,1157,Total Gas & Power,B152,Business Services,Premises,"1,680.78",Apr-22
Slough Borough Council,1157,Total Gas & Power,B086,Place Strategy & Infrastructure,Premises,"5,269.01",Apr-22
Slough Borough Council,806348,Trinity Homelesss Projects,H207,Housing (People) Services,External Receipts,"1,500.00",Apr-22
Slough Borough Council,806348,Trinity Homelesss Projects,H207,Housing (People) Services,External Receipts,"1,500.00",Apr-22
Slough Borough Council,805353,Trojan Construction Products Ltd,D880,Place Operations,Supplies and Services,948.75,Apr-22
Slough Borough Council,2288,Trowers & Hamlins,J006,Place Management,Supplies and Services,504.27,Apr-22
Slough Borough Council,942,Turning Point,A04C,Adult Social Care Commissioning,Supplies and Services,"43,105.00",Apr-22
Slough Borough Council,942,Turning Point,A04C,Adult Social Care Commissioning,Supplies and Services,"42,987.32",Apr-22
Slough Borough Council,942,Turning Point,A04C,Adult Social Care Commissioning,Supplies and Services,"47,781.20",Apr-22
Slough Borough Council,942,Turning Point,A04C,Adult Social Care Commissioning,Supplies and Services,"50,862.00",Apr-22
Slough Borough Council,803603,Unique Training Solutions,A07R,Adult Social Care Operations,Indirect Employee Expenses,624.00,Apr-22
Slough Borough Council,803603,Unique Training Solutions,A07R,Adult Social Care Operations,Indirect Employee Expenses,624.00,Apr-22
Slough Borough Council,803603,Unique Training Solutions,A07R,Adult Social Care Operations,Indirect Employee Expenses,624.00,Apr-22
Slough Borough Council,803603,Unique Training Solutions,A07R,Adult Social Care Operations,Indirect Employee Expenses,624.00,Apr-22
Slough Borough Council,3953,Upton Court Grammar School,E610,Children & Families,Supplies and Services,"2,000.00",Apr-22
Slough Borough Council,3579,Village Sensations,B421,Place Strategy & Infrastructure,Supplies and Services,"9,327.10",Apr-22
Slough Borough Council,1212,Virgin Media Ltd,B282,Digital and Strategic IT,Supplies and Services,"11,823.72",Apr-22
Slough Borough Council,1212,Virgin Media Ltd,B282,Digital and Strategic IT,Supplies and Services,"31,150.00",Apr-22
Slough Borough Council,1212,Virgin Media Ltd,B282,Digital and Strategic IT,Supplies and Services,"-22,500.00",Apr-22
Slough Borough Council,1212,Virgin Media Ltd,B282,Digital and Strategic IT,Supplies and Services,"21,744.13",Apr-22
Slough Borough Council,1212,Virgin Media Ltd,B282,Digital and Strategic IT,Supplies and Services,"21,581.09",Apr-22
Slough Borough Council,804550,Vitor Consultants Ltd.,P239,Capital,Capital Charges,"2,470.00",Apr-22
Slough Borough Council,804550,Vitor Consultants Ltd.,P239,Capital,Capital Charges,975.00,Apr-22
Slough Borough Council,804550,Vitor Consultants Ltd.,P239,Capital,Capital Charges,"2,600.00",Apr-22
Slough Borough Council,804550,Vitor Consultants Ltd.,P239,Capital,Capital Charges,"1,716.00",Apr-22
Slough Borough Council,804550,Vitor Consultants Ltd.,P239,Capital,Capital Charges,910.00,Apr-22
Slough Borough Council,807617,Vivedia Ltd t/a Obitus,P083,Capital,Capital Charges,"17,289.79",Apr-22
Slough Borough Council,807617,Vivedia Ltd t/a Obitus,D320,Regulatory Services,Supplies and Services,"7,740.00",Apr-22
Slough Borough Council,752,Vodafone Limited,B282,Digital and Strategic IT,Supplies and Services,"1,611.36",Apr-22
Slough Borough Council,803163,Volker Highways,B426,Place Regulation,Supplies and Services,"58,774.40",Apr-22
Slough Borough Council,803163,Volker Highways,D413,Place Strategy & Infrastructure,Supplies and Services,"70,000.00",Apr-22
Slough Borough Council,2682,Voyage 1 Limited,M26E,Adult Social Care Operations,Supplies and Services,"6,448.60",Apr-22
Slough Borough Council,2682,Voyage 1 Limited,M26E,Adult Social Care Operations,Supplies and Services,"5,301.21",Apr-22
Slough Borough Council,2682,Voyage 1 Limited,M26E,Adult Social Care Operations,Supplies and Services,"5,039.59",Apr-22
Slough Borough Council,2682,Voyage 1 Limited,M27F,Adult Social Care Operations,Supplies and Services,"5,016.97",Apr-22
Slough Borough Council,2682,Voyage 1 Limited,M26E,Adult Social Care Operations,Supplies and Services,"7,534.13",Apr-22
Slough Borough Council,2682,Voyage 1 Limited,M26E,Adult Social Care Operations,External Receipts,-665.10,Apr-22
Slough Borough Council,3436,Voyage Ltd,M26E,Adult Social Care Operations,Supplies and Services,"6,126.51",Apr-22
Slough Borough Council,3436,Voyage Ltd,M26E,Adult Social Care Operations,Supplies and Services,"3,460.63",Apr-22
Slough Borough Council,3436,Voyage Ltd,M42E,Adult Social Care Operations,Supplies and Services,"5,781.33",Apr-22
Slough Borough Council,3436,Voyage Ltd,M42E,Adult Social Care Operations,Supplies and Services,"6,251.30",Apr-22
Slough Borough Council,3436,Voyage Ltd,M42E,Adult Social Care Operations,Supplies and Services,"5,728.73",Apr-22
Slough Borough Council,3436,Voyage Ltd,M42E,Adult Social Care Operations,Supplies and Services,"5,516.76",Apr-22
Slough Borough Council,3436,Voyage Ltd,M42E,Adult Social Care Operations,Supplies and Services,"5,123.47",Apr-22
Slough Borough Council,3436,Voyage Ltd,M42E,Adult Social Care Operations,Supplies and Services,"4,738.72",Apr-22
Slough Borough Council,3436,Voyage Ltd,M42E,Adult Social Care Operations,Supplies and Services,"4,817.85",Apr-22
Slough Borough Council,807180,Ware247,B282,Digital and Strategic IT,Supplies and Services,"3,610.00",Apr-22
Slough Borough Council,808308,Wavenet Limited,B282,Digital and Strategic IT,Supplies and Services,"57,700.10",Apr-22
Slough Borough Council,1762,Wellingtons For Langley Hall,F550,Children & Families,Supplies and Services,"2,730.00",Apr-22
Slough Borough Council,1762,Wellingtons For Langley Hall,F909,Children & Families,Supplies and Services,"1,520.00",Apr-22
Slough Borough Council,1762,Wellingtons For Langley Hall,F909,Children & Families,Supplies and Services,"72,824.09",Apr-22
Slough Borough Council,2891,West Berkshire Council,A08R,Adult Social Care Operations,Supplies and Services,"10,756.85",Apr-22
Slough Borough Council,1649,Western House Primary School,E610,Children & Families,Supplies and Services,"27,351.66",Apr-22
Slough Borough Council,803677,Wheelie Bin Direct Limited,D610,Place Operations,Supplies and Services,"1,595.00",Apr-22
Slough Borough Council,3628,White Leaf Care Ltd,M26E,Adult Social Care Operations,Supplies and Services,"4,062.86",Apr-22
Slough Borough Council,3628,White Leaf Care Ltd,M27C,Adult Social Care Operations,Supplies and Services,"7,728.00",Apr-22
Slough Borough Council,808062,Whitefriars Nursing & Residential Home,M26E,Adult Social Care Operations,Supplies and Services,"3,365.60",Apr-22
Slough Borough Council,804908,Whitestone Care,B324,Finance,Supplies and Services,"3,810.13",Apr-22
Slough Borough Council,804908,Whitestone Care,B324,Finance,Government Grants,"5,275.58",Apr-22
Slough Borough Council,1753,Willow Primary School,E620,Children & Families,Supplies and Services,"13,139.99",Apr-22
Slough Borough Council,805208,Wilson & Scott (Highways) Ltd,D880,Place Operations,Supplies and Services,579.42,Apr-22
Slough Borough Council,805208,Wilson & Scott (Highways) Ltd,D880,Place Operations,Supplies and Services,650.00,Apr-22
Slough Borough Council,804807,Windsar Care Centre Ltd,M15D,Adult Social Care Operations,Supplies and Services,"6,642.86",Apr-22
Slough Borough Council,804807,Windsar Care Centre Ltd,M15D,Adult Social Care Operations,Supplies and Services,"3,321.43",Apr-22
Slough Borough Council,804807,Windsar Care Centre Ltd,M15F,Adult Social Care Operations,Supplies and Services,"3,277.14",Apr-22
Slough Borough Council,804807,Windsar Care Centre Ltd,M17C,Adult Social Care Operations,Supplies and Services,"4,317.86",Apr-22
Slough Borough Council,804807,Windsar Care Centre Ltd,M17C,Adult Social Care Operations,Supplies and Services,"4,207.14",Apr-22
Slough Borough Council,804807,Windsar Care Centre Ltd,M18C,Adult Social Care Operations,Supplies and Services,"5,314.29",Apr-22
Slough Borough Council,804807,Windsar Care Centre Ltd,M18C,Adult Social Care Operations,Supplies and Services,"4,317.86",Apr-22
Slough Borough Council,804807,Windsar Care Centre Ltd,M18C,Adult Social Care Operations,Supplies and Services,"3,985.71",Apr-22
Slough Borough Council,804807,Windsar Care Centre Ltd,M18C,Adult Social Care Operations,Supplies and Services,"3,321.43",Apr-22
Slough Borough Council,804807,Windsar Care Centre Ltd,M18C,Adult Social Care Operations,Supplies and Services,"3,432.14",Apr-22
Slough Borough Council,804807,Windsar Care Centre Ltd,M18C,Adult Social Care Operations,Supplies and Services,"4,317.86",Apr-22
Slough Borough Council,804807,Windsar Care Centre Ltd,M18C,Adult Social Care Operations,Supplies and Services,"4,317.86",Apr-22
Slough Borough Council,804807,Windsar Care Centre Ltd,M18C,Adult Social Care Operations,Supplies and Services,"4,317.86",Apr-22
Slough Borough Council,804807,Windsar Care Centre Ltd,M18C,Adult Social Care Operations,Supplies and Services,"4,317.86",Apr-22
Slough Borough Council,804807,Windsar Care Centre Ltd,M18C,Adult Social Care Operations,Supplies and Services,"4,207.14",Apr-22
Slough Borough Council,804807,Windsar Care Centre Ltd,M18C,Adult Social Care Operations,Supplies and Services,"3,985.71",Apr-22
Slough Borough Council,804807,Windsar Care Centre Ltd,M27C,Adult Social Care Operations,Supplies and Services,"3,764.28",Apr-22
Slough Borough Council,804807,Windsar Care Centre Ltd,M28C,Adult Social Care Operations,Supplies and Services,"3,542.86",Apr-22
Slough Borough Council,804807,Windsar Care Centre Ltd,B324,Finance,Government Grants,"7,292.48",Apr-22
Slough Borough Council,3604,Windsar Care Ltd,B298,Finance,Supplies and Services,"4,516.69",Apr-22
Slough Borough Council,3604,Windsar Care Ltd,M15F,Adult Social Care Operations,Supplies and Services,"3,432.14",Apr-22
Slough Borough Council,3604,Windsar Care Ltd,M15F,Adult Social Care Operations,Supplies and Services,"3,985.71",Apr-22
Slough Borough Council,3604,Windsar Care Ltd,M15F,Adult Social Care Operations,Supplies and Services,"2,657.14",Apr-22
Slough Borough Council,3604,Windsar Care Ltd,M15F,Adult Social Care Operations,Supplies and Services,"4,207.14",Apr-22
Slough Borough Council,3604,Windsar Care Ltd,M17C,Adult Social Care Operations,Supplies and Services,"3,321.43",Apr-22
Slough Borough Council,3604,Windsar Care Ltd,M18C,Adult Social Care Operations,Supplies and Services,"3,875.00",Apr-22
Slough Borough Council,3604,Windsar Care Ltd,M18C,Adult Social Care Operations,Supplies and Services,"3,542.86",Apr-22
Slough Borough Council,3604,Windsar Care Ltd,M18C,Adult Social Care Operations,Supplies and Services,"3,432.14",Apr-22
Slough Borough Council,3604,Windsar Care Ltd,M25C,Adult Social Care Operations,Supplies and Services,"3,985.71",Apr-22
Slough Borough Council,3604,Windsar Care Ltd,M25C,Adult Social Care Operations,Supplies and Services,"3,321.43",Apr-22
Slough Borough Council,3604,Windsar Care Ltd,M25D,Adult Social Care Operations,Supplies and Services,"4,317.86",Apr-22
Slough Borough Council,3604,Windsar Care Ltd,M26E,Adult Social Care Operations,Supplies and Services,"3,321.43",Apr-22
Slough Borough Council,3604,Windsar Care Ltd,M27C,Adult Social Care Operations,Supplies and Services,"3,985.71",Apr-22
Slough Borough Council,806641,Windsor Care Limited,M17C,Adult Social Care Operations,Supplies and Services,"3,497.49",Apr-22
Slough Borough Council,51,Worldwide Education Recruitment,F210,Community,TP-Other Bodies,"4,500.00",Apr-22
Slough Borough Council,807685,WR Care Services Ltd,B324,Finance,Supplies and Services,"1,203.20",Apr-22
Slough Borough Council,807685,WR Care Services Ltd,B324,Finance,Government Grants,"1,665.97",Apr-22
Slough Borough Council,1803,Wybone Ltd,B426,Place Regulation,Supplies and Services,"2,310.00",Apr-22
Slough Borough Council,748,YMCA St Paul�s Group,H216,Community,Supplies and Services,"2,250.00",Apr-22
Slough Borough Council,748,YMCA St Paul�s Group,H216,Community,Supplies and Services,"3,250.00",Apr-22
Slough Borough Council,748,YMCA St Paul�s Group,H211,Adult Social Care Operations,Supplies and Services,"8,532.00",Apr-22
Slough Borough Council,748,YMCA St Paul�s Group,H211,Adult Social Care Operations,Supplies and Services,"8,532.00",Apr-22
